Workbook

Sheet AER only (hidden)
B1: Data in these columns used for data validation and database purposes.
B2: Date last modified: | C2: 2017-01-16 | D2: added (Albury and Victora) for AGN
C3: 2016-10-17 | D3: updated TransGrid's correct legal name, corrected TasNetworks (T) to June financial year
C4: 2017-02-01 | D4: inserted Power and Water, added NRs (dms_FeederCat_1 and dms_FeederCat_2)
C5: 2017-03-03 | D5: inserted AEMO as a business | AB5: FOR ELECTRICITY BUSINESSES ONLY
C6: 2018-03-28 | D6: major changes to accommodate STPIS
C7: Template Version | D7: 5 | AB7: Feeder Types | AF7: TasNetworks (D) | AG7: MAIFI flag | AH7: Feeder Names
AB8: CBD | AC8: Urban | AD8: Short rural | AE8: long rural | AF8: EXTRA
B9: dms_TradingName_List | C9: dms_TradingNameFull_List | D9: dms_ABN_List | E9: dms_JurisdictionList | F9: dms_Sector_List | G9: dms_Segment_List | H9: dms_FormControl_List | I9: dms_RPT_List | J9: dms_RPTMonth_List | K9: dms_CRCPlength_List | L9: dms_FRCPlength_List | M9: dms_663_List | N9: dms_DeterminationRef_List | O9: dms_Addr1_List | P9: dms_Addr2_List | Q9: dms_Suburb_List | R9: dms_State_List | S9: dms_PostCode_List | T9: dms_PAddr1_List | U9: dms_PAddr2_List | V9: dms_PSuburb_List | W9: dms_PState_List | X9: dms_PPostCode_List | Y9: dms_ContactName1_List | Z9: dms_ContactPh1_List | AA9: dms_ContactEmail_List | AB9: dms_CBD_flag | AC9: dms_Urban_flag | AD9: dms_ShortRural_flag | AE9: dms_LongRural_flag | AF9: dms_FeederType_5_flag | AG9: dms_MAIFI_flag_List | AH9: dms_FeederName_1 | AI9: dms_FeederName_2 | AJ9: dms_FeederName_3 | AK9: dms_FeederName_4 | AL9: dms_FeederName_5 | AM9: Column1
B10: ActewAGL Distribution | C10: ActewAGL Distribution | D10: 76670568688 | E10: ACT | F10: Electricity | G10: Distribution | H10: Revenue cap | I10: Financial | J10: June | K10: 5 | L10: 5 | M10: 5 | N10: 2014-19 Distribution Determination | O10: 40 Bunda Street | Q10: CANBERRA | R10: ACT | S10: 2600 | T10: GPO BOX 366 | V10: CANBERRA | W10: ACT | X10: 2601 | Y10: Robert Walker | Z10: 02 6248 3847 | AA10: robert.walker@actewagle.com.au | AB10: NO | AC10: YES | AD10: YES | AE10: NO | AF10: NO | AH10: CBD | AI10: Urban | AJ10: Short rural | AK10: Long rural | AM10: ActewAGL Distribution
B11: ActewAGL Distribution (Tx Assets) | C11: ActewAGL Distribution (Tx Assets) | D11: 76670568688 | E11: ACT | F11: Electricity | G11: Distribution | H11: Revenue cap | I11: Financial | J11: June | K11: 5 | L11: 5 | M11: 5 | N11: distribution determination | O11: 40 Bunda Street | Q11: CANBERRA | R11: ACT | S11: 2600 | T11: GPO BOX 366 | V11: CANBERRA | W11: ACT | X11: 2601 | Y11: Robert Walker | Z11: 02 6248 3847 | AA11: robert.walker@actewagle.com.au | AB11: NO | AC11: YES | AD11: YES | AE11: NO | AF11: NO | AH11: CBD | AI11: Urban | AJ11: Short rural | AK11: Long rural | AM11: ActewAGL Distribution (Tx Assets)
B12: ActewAGL Gas | C12: ActewAGL Gas | D12: 76670568688 | E12: ACT | F12: Gas | G12: Distribution | H12: Weighted average price cap | I12: Financial | J12: June | K12: 5 | L12: 5 | M12: x | O12: 40 Bunda Street | Q12: CANBERRA | R12: ACT | S12: 2600 | T12: GPO BOX 366 | V12: CANBERRA | W12: ACT | X12: 2601 | Y12: Philip Deamer | Z12: 02 6248 3438 | AA12: GasAAReview@actewagl.com.au | AH12: CBD | AI12: Urban | AJ12: Short rural | AK12: Long rural | AM12: ActewAGL Gas
B13: AEMO | C13: Australian Energy Market Operator Ltd | D13: 94072010327 | E13: Vic | F13: Electricity | G13: Transmission | H13: - | I13: Financial | J13: March | K13: 5 | L13: 5 | M13: x | N13: - | O13: Level 22 | P13: 530 Collins Street | Q13: MELBOURNE | R13: VIC | S13: 3000 | T13: GPO Box 2008 | V13: MELBOURNE | W13: VIC | X13: 3001 | AB13: n/a | AC13: n/a | AD13: n/a | AE13: n/a | AF13: n/a | AH13: CBD | AI13: Urban | AJ13: Short rural | AK13: Long rural | AM13: AEMO
B14: AGN (Albury and Victoria) | C14: Australian Gas Networks Limited (reporting data for Albury and Victoria) | D14: 19078551685 | E14: Vic | F14: Gas | G14: Distribution | H14: Weighted average price cap | I14: Calendar | J14: December | K14: 5 | L14: 5 | M14: x | O14: Level 6 | P14: 400 King William Street | Q14: ADELAIDE | R14: SA | S14: 5000 | T14: PO Box 6468 | U14: Halifax Street | V14: ADELAIDE | W14: SA | X14: 5000 | Y14: Craig de Laine | Z14: 08 8418 1129 | AA14: craig.delaine@agn.com.au | AB14: n/a | AC14: n/a | AD14: n/a | AE14: n/a | AF14: n/a | AH14: CBD | AI14: Urban | AJ14: Short rural | AK14: Long rural | AM14: AGN (Albury)
B15: AGN (Albury) | C15: Australian Gas Networks Limited (reporting data for Albury) | D15: 19078551685 | E15: Vic | F15: Gas | G15: Distribution | H15: Weighted average price cap | I15: Calendar | J15: December | K15: 5 | L15: 5 | M15: x | O15: Level 6 | P15: 400 King William Street | Q15: ADELAIDE | R15: SA | S15: 5000 | T15: PO Box 6468 | U15: Halifax Street | V15: ADELAIDE | W15: SA | X15: 5000 | Y15: Craig de Laine | Z15: 08 8418 1129 | AA15: craig.delaine@agn.com.au | AB15: n/a | AC15: n/a | AD15: n/a | AE15: n/a | AF15: n/a | AH15: CBD | AI15: Urban | AJ15: Short rural | AK15: Long rural
B16: AGN (SA) | C16: Australian Gas Networks Limited (reporting data for SA) | D16: 19078551685 | E16: SA | F16: Gas | G16: Distribution | H16: Weighted average price cap | I16: Financial | J16: June | K16: 5 | L16: 5 | M16: 5 | N16: distribution determination | O16: Level 6 | P16: 400 King William Street | Q16: ADELAIDE | R16: SA | S16: 5000 | T16: PO Box 6468 | U16: Halifax Street | V16: ADELAIDE | W16: SA | X16: 5000 | Y16: Craig de Laine | Z16: 08 8418 1129 | AA16: craig.delaine@agn.com.au | AB16: n/a | AC16: n/a | AD16: n/a | AE16: n/a | AF16: n/a | AH16: CBD | AI16: Urban | AJ16: Short rural | AK16: Long rural | AM16: AGN (SA)
B17: AGN (Victoria) | C17: Australian Gas Networks Limited (reporting data for Victoria) | D17: 19078551685 | E17: Vic | F17: Gas | G17: Distribution | H17: Weighted average price cap | I17: Calendar | J17: December | K17: 5 | L17: 5 | M17: x | O17: Level 6 | P17: 400 King William Street | Q17: ADELAIDE | R17: SA | S17: 5000 | T17: PO Box 6468 | U17: Halifax Street | V17: ADELAIDE | W17: SA | X17: 5000 | Y17: Craig de Laine | Z17: 08 8418 1129 | AA17: craig.delaine@agn.com.au | AB17: n/a | AC17: n/a | AD17: n/a | AE17: n/a | AF17: n/a | AH17: CBD | AI17: Urban | AJ17: Short rural | AK17: Long rural | AM17: AGN (Victoria)
B18: Amadeus | C18: APT Pipelines (NT) Pty Ltd | D18: 39009737393 | E18: NT | F18: Gas | G18: Transmission | H18: Weighted average price cap | I18: Financial | J18: June | K18: 5 | L18: 5 | M18: x | N18: n/a | O18: Level 19, HSBC Building | P18: 580 George Street | Q18: SYDNEY | R18: NSW | S18: 2000 | T18: Level 19, HSBC Building | U18: 580 George Street | V18: SYDNEY | W18: NSW | X18: 2000 | Y18: Alexandra Curran | Z18: 02 9275 0020 | AA18: alexandra.curran@apa.com.au | AB18: n/a | AC18: n/a | AD18: n/a | AE18: n/a | AF18: n/a | AH18: CBD | AI18: Urban | AJ18: Short rural | AK18: Long rural | AM18: Amadeus
B19: APA GasNet | C19: APA GasNet Australia (Operations) Pty Ltd | D19: 065083009 | E19: Vic | F19: Gas | G19: Transmission | H19: Weighted average price cap | I19: Calendar | J19: December | K19: 5 | L19: 5 | M19: x | O19: Level 19, HSBC Building | P19: 580 George Street | Q19: SYDNEY | R19: NSW | S19: 2000 | T19: PO Box R41 | V19: ROYAL EXCHANGE | W19: NSW | X19: 1225 | Y19: Alexandra Curran | Z19: 02 9275 0020 | AA19: alexandra.curran@apa.com.au | AB19: n/a | AC19: n/a | AD19: n/a | AE19: n/a | AF19: n/a | AH19: CBD | AI19: Urban | AJ19: Short rural | AK19: Long rural | AM19: APA GasNet
B20: Ausgrid | C20: Ausgrid | D20: 78508211731 | E20: NSW | F20: Electricity | G20: Distribution | H20: Revenue cap | I20: Financial | J20: June | K20: 5 | L20: 5 | M20: 5 | N20: 2014-19 Distribution Determination | O20: 570 George St | Q20: SYDNEY | R20: NSW | S20: 2000 | T20: GPO Box 4009 | V20: SYDNEY | W20: NSW | X20: 2001 | Y20: John Thomson | Z20: 02 9269 2312 | AA20: john.thomson@ausgrid.com.au | AB20: YES | AC20: YES | AD20: YES | AE20: YES | AF20: NO | AH20: CBD | AI20: Urban | AJ20: Short rural | AK20: Long rural | AM20: Ausgrid
B21: Ausgrid (Tx Assets) | C21: Ausgrid (Tx Assets) | D21: 67505337385 | E21: NSW | F21: Electricity | G21: Distribution | H21: Revenue cap | I21: Financial | J21: June | K21: 5 | L21: 5 | M21: 5 | N21: distribution determination | O21: 570 George St | Q21: SYDNEY | R21: NSW | S21: 2000 | T21: GPO Box 4009 | V21: SYDNEY | W21: NSW | X21: 2001 | Y21: John Thomson | Z21: 02 9269 2312 | AA21: john.thomson@ausgrid.com.au | AB21: YES | AC21: YES | AD21: YES | AE21: YES | AF21: NO | AH21: CBD | AI21: Urban | AJ21: Short rural | AK21: Long rural | AM21: Ausgrid (Tx Assets)
B22: AusNet (D) | C22: AusNet Electricity Services Pty Ltd | D22: 91064651118 | E22: Vic | F22: Electricity | G22: Distribution | H22: Revenue cap | I22: Calendar | J22: December | K22: 5 | L22: 5 | M22: 2 | N22: 2016-20 Distribution Determination | O22: Level 32 | P22: 2 Southbank Boulevard | Q22: SOUTHBANK | R22: Vic | S22: 3006 | T22: Locked Bag 14051 | V22: MELBOURNE CITY MAIL CENTRE | W22: VIC | X22: 8001 | Y22: please provide contact details | AC22: YES | AD22: YES | AE22: YES | AF22: NO | AH22: CBD | AI22: Urban | AJ22: Short rural | AK22: Long rural | AM22: AusNet (D)
B23: AusNet (Gas) | C23: AusNet Gas Services | D23: 086015036 | E23: Vic | F23: Gas | G23: Distribution | H23: Weighted average price cap | I23: Calendar | J23: December | K23: 5 | L23: 5 | M23: X | O23: Level 19, HSBC Building | P23: 580 George Street | Q23: SYDNEY | R23: NSW | S23: 2000 | T23: PO Box R41 | V23: ROYAL EXCHANGE | W23: NSW | X23: 1225 | Y23: Alexandra Curran | Z23: 02 9275 0020 | AA23: alexandra.curran@apa.com.au | AB23: n/a | AC23: n/a | AD23: n/a | AE23: n/a | AF23: n/a | AH23: CBD | AI23: Urban | AJ23: Short rural | AK23: Long rural | AM23: AusNet (Gas)
B24: AusNet (T) | C24: Ausnet Services (Transmission) Ltd | D24: 48116124362 | E24: Vic | F24: Electricity | G24: Transmission | H24: Revenue cap | I24: Financial | J24: March | K24: 5 | L24: 5 | M24: 2 | N24: transmission determination | O24: Level 32 | P24: 2 Southbank Boulevard | Q24: SOUTHBANK | R24: Vic | S24: 3006 | T24: Locked Bag 14051 | V24: MELBOURNE CITY MAIL CENTRE | W24: Vic | X24: 8001 | Y24: Clare Thompson | Z24: 03 9695 6670 | AA24: clare.e.thompson@ausnetservices.com.au | AB24: n/a | AC24: n/a | AD24: n/a | AE24: n/a | AF24: n/a | AH24: CBD | AI24: Urban | AJ24: Short rural | AK24: Long rural | AM24: AusNet (T)
B25: Australian Distribution Co. | C25: Australian Distribution Co. | D25: 11222333444 | E25: - | F25: Electricity | G25: Distribution | H25: Revenue cap | I25: Financial | J25: June | K25: 5 | L25: 5 | M25: 2 | N25: distribution determination | O25: 123 Straight Street | Q25: SYDNEY | R25: NSW | S25: 2000 | T25: PO Box 123 | V25: SYDNEY | W25: NSW | X25: 2000 | Y25: Bob Smith | Z25: 02 1234 5678 | AA25: bob@auselec.net.au | AB25: n/a | AC25: n/a | AD25: n/a | AE25: n/a | AF25: NO | AH25: CBD | AI25: Urban | AJ25: Short rural | AK25: Long rural | AM25: Australian Distribution Co.
B26: Australian Distribution Co. (Vic) | C26: Australian Distribution Co. (Victoria) | D26: 11222333444 | E26: Vic | F26: Electricity | G26: Distribution | H26: Revenue cap | I26: Calendar | J26: December | K26: 5 | L26: 5 | M26: 2 | N26: distribution determination | O26: 123 Straight Street | Q26: MELBOURNE | R26: Vic | S26: 3000 | T26: PO Box 123 | V26: MELBOURNE | W26: VIC | X26: 3000 | Y26: Bob Smith | Z26: 02 1234 5678 | AA26: bob@auselec.net.au | AB26: n/a | AC26: n/a | AD26: n/a | AE26: n/a | AF26: NO | AH26: CBD | AI26: Urban | AJ26: Short rural | AK26: Long rural | AM26: Australian Distribution Co. (Vic)
B27: Australian Transmission Co. | C27: Australian Transmission Co. | D27: 11222333444 | E27: - | F27: Electricity | G27: Transmission | H27: Revenue cap | I27: Financial | J27: June | K27: 5 | L27: 5 | M27: 5 | N27: transmission determination | O27: 123 Straight Street | Q27: SYDNEY | R27: NSW | S27: 2000 | T27: PO Box 123 | V27: SYDNEY | W27: NSW | X27: 2000 | Y27: Bob Smith | Z27: 02 1234 5678 | AA27: bob@auselec.net.au | AB27: n/a | AC27: n/a | AD27: n/a | AE27: n/a | AF27: NO | AH27: CBD | AI27: Urban | AJ27: Short rural | AK27: Long rural | AM27: Australian Transmission Co.
B28: Central Ranges Pipeline (D) | C28: Central Ranges Pipeline Pty Ltd | D28: 108218355 | E28: NSW | F28: Gas | G28: Distribution | H28: Weighted average price cap | I28: Financial | J28: June | K28: 15 | L28: 5 | M28: 5 | N28: distribution determination | O28: Level 19 | P28: 580 George Street | Q28: SYDNEY | R28: NSW | S28: 2000 | T28: PO Box R41 | V28: ROYAL EXCHANGE | W28: NSW | X28: 1225 | Y28: Scott Young | Z28: 02 9275 0031 | AA28: scott.young@apa.com.au | AB28: n/a | AC28: n/a | AD28: n/a | AE28: n/a | AF28: n/a | AH28: CBD | AI28: Urban | AJ28: Short rural | AK28: Long rural
B29: Central Ranges Pipeline (T) | C29: Central Ranges Pipeline Pty Ltd | D29: 108218355 | E29: NSW | F29: Gas | G29: Distribution | H29: Weighted average price cap | I29: Financial | J29: June | K29: 14 | L29: 5 | M29: 5 | N29: transmission determination | O29: Level 19 | P29: 580 George Street | Q29: SYDNEY | R29: NSW | S29: 2000 | T29: PO Box R41 | V29: ROYAL EXCHANGE | W29: NSW | X29: 1225 | Y29: Scott Young | Z29: 02 9275 0031 | AA29: scott.young@apa.com.au | AB29: n/a | AC29: n/a | AD29: n/a | AE29: n/a | AF29: n/a | AH29: CBD | AI29: Urban | AJ29: Short rural | AK29: Long rural
B30: CitiPower | C30: CitiPower | D30: 76064651056 | E30: Vic | F30: Electricity | G30: Distribution | H30: Revenue cap | I30: Calendar | J30: December | K30: 5 | L30: 5 | M30: 2 | N30: 2016-20 Distribution Determination | O30: 40 Market Street | Q30: MELBOURNE | R30: Vic | S30: 3000 | T30: Locked Bag 14090 | V30: MELBOURNE | W30: VIC | X30: 8001 | Y30: Hannah Williams | Z30: 03 9683 4088 | AA30: hwilliams@powercor.com.au | AB30: YES | AC30: YES | AD30: NO | AE30: NO | AF30: NO | AH30: CBD | AI30: Urban | AJ30: Short rural | AK30: Long rural | AM30: CitiPower
B31: Directlink | C31: Directlink | D31: 16779340889 | E31: Qld | F31: Electricity | G31: Transmission | H31: Revenue cap | I31: Financial | J31: June | K31: 9 | L31: 5 | M31: 5 | N31: transmission determination | O31: Level 19, HSBC Building | P31: 580 George Street | Q31: SYDNEY | R31: NSW | S31: 2000 | T31: PO Box R41 | V31: ROYAL EXCHANGE | W31: NSW | X31: 1225 | Y31: Scott Young | Z31: 02 9275 0031 | AA31: scott.young@apa.com.au | AB31: n/a | AC31: n/a | AD31: n/a | AE31: n/a | AF31: n/a | AH31: CBD | AI31: Urban | AJ31: Short rural | AK31: Long rural | AM31: Directlink
B32: ElectraNet | C32: ElectraNet | D32: 41094482416 | E32: SA | F32: Electricity | G32: Transmission | H32: Revenue cap | I32: Financial | J32: June | K32: 5 | L32: 5 | M32: 5 | N32: transmission determination | O32: 52-55 East Terrace | P32: Rymill Park | Q32: ADELAIDE | R32: SA | S32: 5000 | T32: PO Box 7096 | U32: Hutt Street Post Office | V32: ADELAIDE | W32: SA | X32: 5000 | Y32: Bill Jackson | Z32: 08 8404 7969 | AA32: jackson.bill@electranet.com.au | AB32: n/a | AC32: n/a | AD32: n/a | AE32: n/a | AF32: n/a | AH32: CBD | AI32: Urban | AJ32: Short rural | AK32: Long rural | AM32: ElectraNet
B33: Endeavour Energy | C33: Endeavour Energy | D33: 11247365823 | E33: NSW | F33: Electricity | G33: Distribution | H33: Revenue cap | I33: Financial | J33: June | K33: 5 | L33: 5 | M33: 5 | N33: 2014-19 Distribution Determination | O33: 51 Huntingwood Drive | Q33: HUNTINGWOOD | R33: NSW | S33: 2148 | T33: PO Box 811 | V33: SEVEN HILLS | W33: NSW | X33: 1730 | Y33: Jon Hocking | Z33: 02 9853 4386 / 0407 348 156 | AA33: Jon.Hocking@Endeavourenergy.com.au | AB33: NO | AC33: YES | AD33: YES | AE33: YES | AF33: NO | AH33: CBD | AI33: Urban | AJ33: Short rural | AK33: Long rural | AM33: Endeavour Energy
B34: Energex | C34: Energex | D34: 40078849055 | E34: Qld | F34: Electricity | G34: Distribution | H34: Revenue cap | I34: Financial | J34: June | K34: 5 | L34: 5 | M34: 5 | N34: 2015-20 Distribution Determination | O34: 26 Reddacliff Street | Q34: NEWSTEAD | R34: Qld | S34: 4006 | T34: 26 Reddacliff Street | V34: NEWSTEAD | W34: QLD | X34: 4006 | Y34: Nicola Roscoe | Z34: 07 3664 5891 | AA34: nicolaroscoe@energex.com.au | AB34: YES | AC34: YES | AD34: YES | AE34: NO | AF34: NO | AH34: CBD | AI34: Urban | AJ34: Short rural | AK34: Long rural | AM34: Energex
B35: Ergon Energy | C35: Ergon Energy | D35: 50087646062 | E35: Qld | F35: Electricity | G35: Distribution | H35: Revenue cap | I35: Financial | J35: June | K35: 5 | L35: 5 | M35: 5 | N35: 2015-20 Distribution Determination | O35: 22 Walker Street | Q35: TOWNSVILLE | R35: Qld | S35: 4810 | T35: Po Box 264 | V35: FORTITUDE VALLEY | W35: QLD | X35: 4006 | Y35: Jenny Doyle, Group Manager Regulatory Affairs | Z35: (07) 3851 6416 | AA35: jenny.doyle@ergon.com.au | AB35: NO | AC35: YES | AD35: YES | AE35: YES | AF35: NO | AH35: CBD | AI35: Urban | AJ35: Short rural | AK35: Long rural | AM35: Ergon Energy
B36: Essential Energy | C36: Essential Energy | D36: 37428185226 | E36: NSW | F36: Electricity | G36: Distribution | H36: Revenue cap | I36: Financial | J36: June | K36: 5 | L36: 5 | M36: 5 | N36: 2014-19 Distribution Determination | O36: 8 Buller Street | Q36: PORT MACQUARIE | R36: NSW | S36: 2444 | T36: PO Box 5730 | V36: PORT MACQUARIE | W36: NSW | X36: 2444 | Y36: Catherine Waddell | Z36: 02 6338 3553 | AA36: catherine.waddell@essentialenergy.com.au | AB36: NO | AC36: NO | AD36: YES | AE36: YES | AF36: NO | AH36: CBD | AI36: Urban | AJ36: Short rural | AK36: Long rural | AM36: Essential Energy
B37: Jemena Electricity | C37: Jemena Electricity | D37: 82064651083 | E37: Vic | F37: Electricity | G37: Distribution | H37: Revenue cap | I37: Calendar | J37: December | K37: 5 | L37: 5 | M37: 2 | N37: 2016-20 Distribution Determination | O37: Level 16 | P37: 567 Collins Street | Q37: MELBOURNE | R37: VIC | S37: 3000 | T37: PO Box 16182 | V37: MELBOURNE | W37: VIC | X37: 8001 | Y37: Matthew Serpell | Z37: 03 9173 8231 | AA37: matthew.serpell@jemena.com.au | AB37: NO | AC37: NO | AD37: YES | AE37: NO | AF37: NO | AH37: CBD | AI37: Urban | AJ37: Short rural | AK37: Long rural | AM37: Jemena Electricity
B38: JGN | C38: Jemena Gas Networks (NSW) Ltd | D38: 003 004 322 | E38: NSW | F38: Gas | G38: Distribution | H38: Weighted average price cap | I38: Financial | J38: June | K38: 5 | L38: 5 | Y38: please provide contact details | AB38: n/a | AC38: n/a | AD38: n/a | AE38: n/a | AF38: n/a | AH38: CBD | AI38: Urban | AJ38: Short rural | AK38: Long rural | AM38: JGN
B39: Multinet Gas | C39: Multinet Gas (DB No.1) Pty Ltd (ACN 086 026 986), Multinet Gas (DB No.2) Pty Ltd (ACN 086 230 122) | D39: 086026986 | E39: Vic | F39: Gas | G39: Distribution | H39: Weighted average price cap | I39: Calendar | J39: December | K39: 5 | L39: 5 | M39: x | O39: 43-45 Centreway | Q39: MT WAVERLEY | R39: Vic | S39: 3149 | Y39: Andrew Schille | Z39: 03 8846 9860 | AA39: andrew.schille@ue.com.au | AB39: n/a | AC39: n/a | AD39: n/a | AE39: n/a | AF39: n/a | AH39: CBD | AI39: Urban | AJ39: Short rural | AK39: Long rural | AM39: Multinet Gas
B40: Murraylink | C40: Murraylink | D40: 79181207909 | E40: SA | F40: Electricity | G40: Transmission | H40: Revenue cap | I40: Financial | J40: June | K40: 5 | L40: 5 | M40: 5 | N40: transmission determination | O40: Level 19 | P40: 580 George Street | Q40: SYDNEY | R40: NSW | S40: 2000 | T40: PO Box R41 | V40: ROYAL EXCHANGE | W40: NSW | X40: 1225 | Y40: Scott Young | Z40: 02 9275 0031 | AA40: scott.young@apa.com.au | AB40: n/a | AC40: n/a | AD40: n/a | AE40: n/a | AF40: n/a | AH40: CBD | AI40: Urban | AJ40: Short rural | AK40: Long rural | AM40: Murraylink
B41: Power and Water | C41: Power and Water Corporation | D41: 15947352360 | E41: NT | F41: Electricity | G41: Distribution | H41: Revenue cap | I41: Financial | J41: June | K41: 5 | L41: 5 | M41: x | N41: distribution determination | O41: GPO Box 1921 | Q41: DARWIN | R41: NT | S41: 801 | T41: GPO Box 1921 | V41: DARWIN | W41: NT | X41: 801 | Y41: Lucy Moon | Z41: 08 8924 5822 | AA41: Lucy.Moon@powerwater.com.au | AB41: YES | AC41: YES | AD41: YES | AE41: YES | AF41: NO | AH41: CBD | AI41: Urban | AJ41: Short rural | AK41: Long rural
B42: Powercor Australia | C42: Powercor Australia | D42: 89064651109 | E42: Vic | F42: Electricity | G42: Distribution | H42: Revenue cap | I42: Calendar | J42: December | K42: 5 | L42: 5 | M42: 2 | N42: 2016-20 Distribution Determination | O42: 40 Market Street | Q42: MELBOURNE | R42: Vic | S42: 3000 | T42: Locked bag 14090 | V42: MELBOURNE | W42: VIC | X42: 8001 | Y42: Hannah Williams | Z42: 03 9683 4088 | AA42: hwilliams@powercor.com.au | AD42: YES | AE42: YES | AF42: NO | AH42: CBD | AI42: Urban | AJ42: Short rural | AK42: Long rural | AM42: Powercor Australia
B43: Powerlink | C43: Queensland Electricity Transmission Corporation Limited trading as Powerlink Queensland | D43: 82078849233 | E43: Qld | F43: Electricity | G43: Transmission | H43: Revenue cap | I43: Financial | J43: June | K43: 5 | L43: 5 | M43: 5 | N43: transmission determination | O43: 33 Harold St | Q43: VIRGINIA | R43: Qld | S43: 4014 | T43: PO Box 1193 | V43: VIRGINIA | W43: QLD | X43: 4014 | Y43: Jennifer Harris | Z43: 07 3860 2667 | AA43: jharris@powerlink.com.au | AB43: n/a | AC43: n/a | AD43: n/a | AE43: n/a | AF43: n/a | AH43: CBD | AI43: Urban | AJ43: Short rural | AK43: Long rural | AM43: Powerlink
B44: Roma to Brisbane Pipeline | C44: APT Petroleum Pipelines Limited t/a Roma to Brisbane Pipeline | D44: 009 737 393 | E44: Qld | F44: Gas | G44: Transmission | H44: Weighted average price cap | I44: Financial | J44: June | K44: 5 | L44: 5 | M44: x | N44: n/a | O44: 580 George Street | Q44: SYDNEY | R44: NSW | S44: 2000 | T44: PO Box R41 | V44: ROYAL EXCHANGE | W44: NSW | X44: 1225 | Y44: Mark Allen | Z44: 02 9275 0010 | AA44: mark.allen@apa.com.au | AB44: n/a | AC44: n/a | AD44: n/a | AE44: n/a | AF44: n/a | AH44: CBD | AI44: Urban | AJ44: Short rural | AK44: Long rural | AM44: Roma to Brisbane Pipeline
B45: SA Power Networks | C45: SA Power Networks | D45: 13332330749 | E45: SA | F45: Electricity | G45: Distribution | H45: Revenue cap | I45: Financial | J45: June | K45: 5 | L45: 5 | M45: 5 | N45: 2015-20 Distribution Determination | O45: 1 Anzac Highway | Q45: KESWICK | R45: SA | S45: 5035 | T45: GPO Box 77 | V45: ADELAIDE | W45: SA | X45: 5000 | Y45: Richard Sibly | Z45: 08 8404 5613 | AA45: richard.sibly@sapowernetworks.com.au | AB45: NO | AC45: NO | AD45: YES | AE45: YES | AF45: NO | AH45: CBD | AI45: Urban | AJ45: Short rural | AK45: Long rural | AM45: SA Power Networks
B46: TasNetworks (D) | C46: TasNetworks (D) | D46: 24167357299 | E46: Tas | F46: Electricity | G46: Distribution | H46: Revenue cap | I46: Financial | J46: June | K46: 5 | L46: 5 | M46: 5 | N46: distribution determination | O46: 1-7 Maria Street | Q46: LENAH VALLEY | R46: Tas | S46: 7008 | T46: PO Box 606 | V46: MOONAH | W46: Tas | X46: 7009 | Y46: John Sayers | Z46: 03 6271 6469 | AA46: john.sayers@tasnetworks.com.au | AB46: YES | AC46: YES | AD46: YES | AE46: YES | AF46: YES | AH46: Critical Infrastructure | AI46: High density commercial | AJ46: Urban | AK46: High density rural | AL46: Low density rural | AM46: TasNetworks (D)
B47: TasNetworks (T) | C47: TasNetworks (T) | D47: 24167357299 | E47: Tas | F47: Electricity | G47: Transmission | H47: Revenue cap | I47: Financial | J47: June | K47: 5 | L47: 5 | M47: 5 | N47: transmission determination | O47: 1-7 Maria Street | Q47: LENAH VALLEY | R47: Tas | S47: 7008 | T47: PO Box 606 | V47: MOONAH | W47: Tas | X47: 7009 | Y47: John Sayers | Z47: 03 6271 6469 | AA47: john.sayers@tasnetworks.com.au | AB47: n/a | AC47: n/a | AD47: n/a | AE47: n/a | AF47: n/a | AH47: CBD | AI47: Urban | AJ47: Short rural | AK47: Long rural | AM47: TasNetworks (T)
B48: TransGrid | C48: NSW Electricity Networks Operations Pty Ltd trading as TransGrid | D48: 609169959 | E48: NSW | F48: Electricity | G48: Transmission | H48: Revenue cap | I48: Financial | J48: June | K48: 5 | L48: 4 | M48: 5 | N48: transmission determination | O48: 180 Thomas Street | Q48: SYDNEY | R48: NSW | S48: 2000 | T48: PO Box A1000 | V48: SYDNEY SOUTH | W48: NSW | X48: 1235 | Y48: Garrie Chubb | Z48: 0408 210 221 | AA48: garrie.chubb@transgrid.com.au | AB48: n/a | AC48: n/a | AD48: n/a | AE48: n/a | AF48: n/a | AH48: CBD | AI48: Urban | AJ48: Short rural | AK48: Long rural | AM48: TransGrid
B49: United Energy | C49: United Energy | D49: 70064651029 | E49: Vic | F49: Electricity | G49: Distribution | H49: Revenue cap | I49: Calendar | J49: December | K49: 5 | L49: 5 | M49: 2 | N49: 2016-20 Distribution Determination | O49: Level 3 | P49: 6 Nexus Court | Q49: MULGRAVE | R49: Vic | S49: 3149 | T49: PO Box 449 | V49: MOUNT WAVERLEY | W49: VIC | X49: 3170 | Y49: Mathew Abraham | Z49: 03 8846 9758 | AA49: mathew.abraham@ue.com.au | AB49: NO | AC49: NO | AD49: YES | AE49: NO | AF49: NO | AH49: CBD | AI49: Urban | AJ49: Short rural | AK49: Long rural | AM49: United Energy
B50: Western Power (D) | C50: Western Power (D) | D50: 18540492861 | E50: WA | F50: Electricity | G50: Distribution | H50: Revenue cap | I50: Financial | J50: June | K50: 12 | L50: 4 | M50: x | N50: distribution determination | O50: 363 Wellington Street | Q50: PERTH | R50: WA | S50: 6000 | T50: GPO Box L921 | V50: PERTH | W50: WA | X50: 6842 | Y50: Judy Hunter | Z50: 08 9326 6239 | AA50: judy.hunter@westernpower.com.au | AB50: NO | AC50: NO | AD50: YES | AE50: YES | AF50: NO | AG50: NO | AH50: CBD | AI50: Urban | AJ50: Short rural | AK50: Long rural | AM50: Western Power (D)
B51: Western Power (T) | C51: Western Power (T) | D51: 18540492861 | E51: WA | F51: Electricity | G51: Transmission | H51: Revenue cap | I51: Financial | J51: June | K51: 12 | L51: 4 | M51: x | N51: transmission determination | O51: 363 Wellington Street | Q51: PERTH | R51: WA | S51: 6000 | T51: GPO Box L921 | V51: PERTH | W51: WA | X51: 6842 | Y51: Judy Hunter | Z51: 08 9326 6239 | AA51: judy.hunter@westernpower.com.au | AB51: n/a | AC51: n/a | AD51: n/a | AE51: n/a | AF51: n/a | AH51: CBD | AI51: Urban | AJ51: Short rural | AK51: Long rural | AM51: Western Power (T)
Y54: For EB & Reset RINs only | AD54: For AARs only
B55: The Reg Year Ending (dms_RYE) must be set to the last year of the regulatory period. For forecast data is is usually (FRCP_y5) for actual it is a single year (CRY). For historical actual data the RYE will need to be set manually in the business details sheet by setting the dms_Multiyear_flag to 1 and putting the correct value in 'dms_Specified_FinalYear. See cells C67:C68 | G55: =IF(dms_RPT="financial",VALUE(LEFT(CRCP_y1,4)-1)&"-"&TEXT(VALUE(RIGHT(CRCP_y1,2)-1),"00"),VALUE(LEFT(CRCP_y1,4)-1)) -> 2014-15 | N55: Drop down selector box for CA & Reset RINs. | O55: For CA & Reset RINs only | Y55: for DNSP only | AD55: For DNSPs only | AJ55: Reason for interruption | AK55: dms_Reason_Interruption_Detailed | AL55: dms_Reason_Interruption | AM55: dms_STPIS_Exclusion_List
B56: dms_Model_List | C56: DELETE NR 'CRY' IF NOT AN ANNUAL RIN (EB, CA , ARR) | E56: dms_RYE_Formula_Result | N56: dms_0203_ProjectType | O56: dms_020303_01_UOM | P56: dms_020501_01_UOM | Q56: dms_020501_02_UOM | R56: dms_020501_03_UOM | S56: dms_020501_04_UOM | T56: dms_020603_01_UOM | U56: dms_020701_01_UOM | V56: dms_020701_02_UOM | W56: dms_040102_01_UOM | X56: dms_040102_04_UOM | Y56: dms_030601_01_UOM | Z56: dms_030601_02_UOM | AA56: dms_030701_01_UOM | AB56: dms_030702_01_UOM | AC56: dms_030703_01_UOM | AD56: dms_030605_UOM | AE56: dms_03060703_UOM | AJ56: Animal | AK56: Animal impact | AL56: Animal | AM56: Weather
B57: ARR | C57: ANNUAL REPORTING STATEMENT | E57: =LEFT(dms_SingleYear_FinalYear_Result,2)&RIGHT(dms_SingleYear_FinalYear_Result,2) -> 2018 | F57: =LEFT(dms_SingleYear_FinalYear_Result,2)&RIGHT(dms_SingleYear_FinalYear_Result,2) | H57: Formula errors are OK | N57: New line on new route - single circuit | O57: Circuit line length in km | P57: 0's | Q57: 0's | R57: 0's | S57: 0's | T57: 0's | U57: km | V57: km | W57: 0's | X57: days | Y57: minutes/customer | Z57: minutes/customer | AA57: Customer / km | AB57: % | AC57: km | AD57: number | AE57: number | AK57: Animal nesting/burrowing, etc and other | AL57: Asset failure | AM57: Equipment failure
B58: CA | C58: CATEGORY ANALYSIS | E58: =LEFT(dms_SingleYear_FinalYear_Result,2)&RIGHT(dms_SingleYear_FinalYear_Result,2) -> 2018 | F58: =LEFT(dms_SingleYear_FinalYear_Result,2)&RIGHT(dms_SingleYear_FinalYear_Result,2) | H58: Formula errors are OK | N58: New line on new route - dual circuit | O58: Circuit line length in km | P58: 0's | Q58: 0's | R58: 0's | S58: 0's | T58: 0's | U58: 0's | V58: 0's | W58: 0's | X58: 0's | Y58: minutes/customer | Z58: minutes/customer | AA58: MWh/customer | AB58: Number of spans | AD58: number | AE58: number | AK58: Other | AL58: Other | AM58: Operational error
B59: CPI | C59: CPI | N59: New line on new route - other | O59: Circuit line length in km | P59: MVA added | Q59: MVA added | R59: MVA added | S59: MVA added | T59: 0's | U59: km | V59: km | W59: 0's | X59: $0s | Y59: interruptions/customer | Z59: interruptions/customer | AA59: kVA / customer | AB59: Number of spans | AD59: number | AE59: number | AJ59: Asset failure | AK59: LV | AL59: Overloads | AM59: Vegetation
B60: EB | C60: ECONOMIC BENCHMARKING | E60: =LEFT(dms_SingleYear_FinalYear_Result,2)&RIGHT(dms_SingleYear_FinalYear_Result,2) -> 2018 | F60: =LEFT(dms_SingleYear_FinalYear_Result,2)&RIGHT(dms_SingleYear_FinalYear_Result,2) | H60: Formula errors are OK | N60: Line rebuild over existing route - single circuit | O60: Circuit line length in km | P60: 0's | Q60: 0's | R60: 0's | S60: 0's | T60: 0's | U60: km | V60: km | W60: $0s | X60: 0's | Y60: interruptions/customer | Z60: interruptions/customer | AB60: Number of spans | AD60: number | AE60: number | AK60: Distribution substation | AL60: Planned | AM60: Animals
B61: PTRM | C61: POST TAX REVENUE MODEL | E61: =LEFT(dms_MultiYear_FinalYear_Result,2)&RIGHT(dms_MultiYear_FinalYear_Result,2) -> 2025 | F61: =LEFT(dms_MultiYear_FinalYear_Result,2)&RIGHT(dms_MultiYear_FinalYear_Result,2) | N61: Line rebuild over existing route - dual circuit | O61: Number | P61: total spend $0s | Q61: total spend $0s | R61: total spend $0s | S61: total spend $0s | T61: (per cent) | U61: 0's | V61: 0's | AB61: Number of spans | AD61: number | AE61: (per cent) | AK61: HV | AL61: Network business | AM61: Third party impacts
B62: Reset | C62: REGULATORY REPORTING STATEMENT | E62: =LEFT(dms_MultiYear_FinalYear_Result,2)&RIGHT(dms_MultiYear_FinalYear_Result,2) -> 2025 | F62: =LEFT(dms_MultiYear_FinalYear_Result,2)&RIGHT(dms_MultiYear_FinalYear_Result,2) | H62: Formula errors are OK | N62: Reconductor - Single circuit | O62: Number | P62: net circuit km added | Q62: net circuit km added | R62: net circuit km added | S62: net circuit km added | U62: years | V62: years | AB62: Years | AD62: number | AK62: Zone substation | AL62: Third party | AM62: Transmission failure
B63: RFM | C63: ROLL FORWARD MODEL | E63: =LEFT(dms_CRCP_FinalYear_Result,2)&RIGHT(dms_CRCP_FinalYear_Result,2) -> 2018 | F63: =LEFT(dms_CRCP_FinalYear_Result,2)&RIGHT(dms_CRCP_FinalYear_Result,2) | N63: Reconductor - Dual circuit | O63: Number | P63: total spend $0s | Q63: total spend $0s | R63: total spend $0s | S63: total spend $0s | AB63: Years | AD63: number | AK63: Subtransmission | AL63: Unknown | AM63: Load shedding
B64: WACC | C64: WEIGHTED AVERAGE COST OF CAPITAL | E64: =LEFT(dms_MultiYear_FinalYear_Result,2)&RIGHT(dms_MultiYear_FinalYear_Result,2) -> 2025 | F64: =LEFT(dms_MultiYear_FinalYear_Result,2)&RIGHT(dms_MultiYear_FinalYear_Result,2) | N64: Other | P64: net circuit km added | Q64: net circuit km added | R64: net circuit km added | S64: net circuit km added | AB64: Trees | AD64: number | AJ64: Other | AK64: insert description of 'other' | AL64: Vegetation | AM64: Inter-distributor connection failure
P65: total spend $0s | Q65: total spend $0s | R65: total spend $0s | S65: total spend $0s | AB65: Trees | AD65: number | AJ65: Overloads | AK65: - | AL65: Weather | AM65: Other
B66: dms_DataQuality_List | P66: 0's | R66: $0s | AB66: Defects | AD66: number | AJ66: Planned | AK66: - | AL66: 2 - STPIS Exclusion (3.3)(a)
B67: Actual | P67: 0's | AB67: Defects | AD67: number | AJ67: Network business | AK67: Network error | AL67: 3 - STPIS Exclusion (3.3)(a)
B68: Estimate | P68: 0's | AB68: Spans | AD68: number | AK68: Switching and protection error | AL68: 4 - STPIS Exclusion (3.3)(a)
B69: Consolidated | P69: $0s | AB69: km | AD69: (per cent) | AJ69: Third party | AK69: Fire | AL69: 5 - STPIS Exclusion (3.3)(a)
B70: Recast | AB70: Spans | AD70: (per cent) | AK70: Other | AL70: 6 - STPIS Exclusion (3.3)(a)
B71: Public | AK71: Dig-in | AL71: 7 - STPIS Exclusion (3.3)(a)
AK72: Unauthorised access
B73: For all files either AER or business needs to be able to specify the type of submission | C73: For PTRM & RFM templates we must provide a choice in case they change their form of control - otherwise it is drawn from the business specific lookup table above. | O73: For PTRM files - this field set the text for the named range "DMS_Xfactor" which in all cases is simply the text "x factors" - this saves putting in each old gas PTRM file | Y73: for TNSP only | AK73: Vehicle impact
B74: dms_SourceList | C74: dms_FormControl_Choices | O74: DMS_Xfactor | Y74: dms_030601_01_UOM | AA74: dms_030701_01_UOM | AB74: dms_030702_01_UOM | AJ74: Unknown | AK74: Unknown
B75: After appeal | C75: Revenue cap | O75: x factors | Y75: % | AA75: Number of spans | AB75: km | AJ75: Vegetation | AK75: Blow-in/Fall-in - NSP responsibility
B76: Draft decision | C76: Revenue yield | Y76: number | AA76: Years | AB76: % | AK76: Grow-in - NSP responsibility
B77: Final decision | C77: Weighted average price cap | Y77: number | AA77: Trees | AB77: km | AK77: Blow-in/Fall-in - Other responsible party
B78: PTRM update 1 | Y78: % | AA78: Defects | AB78: number | AK78: Grow-in - Other responsible party
B79: PTRM update 2 | Y79: number | AA79: Number of spans | AJ79: Weather
B80: PTRM update 3 | Y80: number | AA80: km | AJ80: 2 - STPIS Exclusion (3.3)(a)
B81: PTRM update 4 | Y81: % | AA81: km | AJ81: 3 - STPIS Exclusion (3.3)(a)
B82: PTRM update 5 | Y82: number | AA82: Number of spans | AJ82: 4 - STPIS Exclusion (3.3)(a)
B83: PTRM update 6 | Y83: number | AJ83: 5 - STPIS Exclusion (3.3)(a)
B84: PTRM update 7 | Y84: % | AJ84: 6 - STPIS Exclusion (3.3)(a)
B85: Regulatory proposal | Y85: number | AJ85: 7 - STPIS Exclusion (3.3)(a)
B86: Reporting | Y86: %
B87: Revised regulatory proposal | Y87: number
Y88: %
Y89: number
B93: These are indeces and lookup values for various dates. All step from the value placed in FRCP_y1 on the business and other details worksheet | C93: =IF(dms_FifthFeeder_flag_NSP="NO","This NSP has only 4 feeder categories","This NSP has 5 feeder categories") -> This NSP has only 4 feeder categories | L93: These date tables are currently used in the Recast templates to provide column headings and conditional formatting
B94: dms_FRCPlength_Num_List | C94: dms_FinalYear_List | D94: dms_CRCPlength_Num_List | E94: dms_CFinalYear_List | F94: dms_FRCP_years | H94: dms_CRCP_years | J94: dms_CRCP_index | L94: CRY from input cell on business sheet | M94: CRY - financial | N94: dms_FinYears | O94: CRY calendar | P94: dms_CalYears | Y94: These "row descriptions" are the column headings in the various templates but become row descriptions in the ETL process
B95: 1 | C95: dms_FRCP_y1 | D95: 1 | E95: CRCP_y1 | F95: =FRCP_y1 -> 2020-21 | G95: dms_FRCP_y1 | H95: =IF(dms_RPT="financial",VALUE(LEFT(dms_FRCP_y1,4)-1)&"-"&TEXT(VALUE(MID(dms_FRCP_y1,3,2)),"00"),VALUE(LEFT(dms_FRCP_y1,4)-1)) -> 2019-20 | I95: dms_CRCP_yZ | J95: 1 | L95: =CRY -> 2017-18 | M95: =VALUE(LEFT(CRY,4))&"-"&TEXT(MID(CRY,3,2)+1,"00") -> 2017-18 | N95: dms_CRYf_y1 | O95: =VALUE(LEFT(CRY,4)+1) -> 2018 | P95: dms_CRYc_y1 | Z95: Table 6.3 sustained interruptions - row descriptions
B96: 2 | C96: dms_FRCP_y2 | D96: 2 | E96: CRCP_y2 | F96: =IF(dms_RPT="financial",VALUE(LEFT(dms_FRCP_y1,4)+1)&"-"&TEXT(VALUE(RIGHT(dms_FRCP_y1,2)+1),"00"),VALUE(LEFT(dms_FRCP_y1,4)+1)) -> 2021-22 | G96: dms_FRCP_y2 | H96: =IF(dms_RPT="financial",VALUE(LEFT(dms_CRCP_yZ,4)-1)&"-"&TEXT(VALUE(MID(dms_CRCP_yZ,3,2)),"00"),VALUE(LEFT(dms_CRCP_yZ,4)-1)) -> 2018-19 | I96: dms_CRCP_yY | J96: 2 | M96: =VALUE(LEFT(dms_CRYf_y1,4)+1)&"-"&TEXT(MID(dms_CRYf_y1,3,2)+2,"00") -> 2018-19 | N96: dms_CRYf_y2 | O96: =VALUE(LEFT(dms_CRYc_y1,4)+1) -> 2019 | P96: dms_CRYc_y2 | Z96: dms_060301_CustNo_Affected_Row | AA96: dms_060301_Avg_Duration_Sustained_Int_Row | AB96: dms_060301_Effect_unplanned_SAIDI_Row | AC96: dms_060301_Effect_unplanned_SAIFI_Row
B97: 3 | C97: =IF(dms_Model="ARR",15,9) | D97: 3 | E97: =IF(dms_Model="ARR",15,9) | F97: =IF(dms_RPT="financial",VALUE(LEFT(dms_FRCP_y2,4)+1)&"-"&TEXT(VALUE(RIGHT(dms_FRCP_y2,2)+1),"00"),VALUE(LEFT(dms_FRCP_y2,4)+1)) -> 2022-23 | G97: dms_FRCP_y3 | H97: =IF(dms_RPT="financial",VALUE(LEFT(dms_CRCP_yY,4)-1)&"-"&TEXT(VALUE(MID(dms_CRCP_yY,3,2)),"00"),VALUE(LEFT(dms_CRCP_yY,4)-1)) -> 2017-18 | I97: dms_CRCP_yX | J97: 3 | M97: =VALUE(LEFT(dms_CRYf_y2,4)+1)&"-"&TEXT(MID(dms_CRYf_y2,3,2)+2,"00") -> 2019-20 | N97: dms_CRYf_y3 | O97: =VALUE(LEFT(dms_CRYc_y2,4)+1) -> 2020 | P97: dms_CRYc_y3 | Z97: Number of customers affected by the interruption | AA97: Average duration of sustained customer interruption | AB97: Effect on unplanned SAIDI | AC97: Effect on unplanned SAIFI
B98: 4 | C98: dms_FRCP_y4 | D98: 4 | E98: CRCP_y4 | F98: =IF(dms_RPT="financial",VALUE(LEFT(dms_FRCP_y3,4)+1)&"-"&TEXT(VALUE(RIGHT(dms_FRCP_y3,2)+1),"00"),VALUE(LEFT(dms_FRCP_y3,4)+1)) -> 2023-24 | G98: dms_FRCP_y4 | H98: =IF(dms_RPT="financial",VALUE(LEFT(dms_CRCP_yX,4)-1)&"-"&TEXT(VALUE(MID(dms_CRCP_yX,3,2)),"00"),VALUE(LEFT(dms_CRCP_yX,4)-1)) -> 2016-17 | I98: dms_CRCP_yW | J98: 4 | M98: =VALUE(LEFT(dms_CRYf_y3,4)+1)&"-"&TEXT(MID(dms_CRYf_y3,3,2)+2,"00") -> 2020-21 | N98: dms_CRYf_y4 | O98: =VALUE(LEFT(dms_CRYc_y3,4)+1) -> 2021 | P98: dms_CRYc_y4
B99: 5 | C99: dms_FRCP_y5 | D99: 5 | E99: CRCP_y5 | F99: =IF(dms_RPT="financial",VALUE(LEFT(dms_FRCP_y4,4)+1)&"-"&TEXT(VALUE(RIGHT(dms_FRCP_y4,2)+1),"00"),VALUE(LEFT(dms_FRCP_y4,4)+1)) -> 2024-25 | G99: dms_FRCP_y5 | H99: =IF(dms_RPT="financial",VALUE(LEFT(dms_CRCP_yW,4)-1)&"-"&TEXT(VALUE(MID(dms_CRCP_yW,3,2)),"00"),VALUE(LEFT(dms_CRCP_yW,4)-1)) -> 2015-16 | I99: dms_CRCP_yV | J99: 5 | M99: =VALUE(LEFT(dms_CRYf_y4,4)+1)&"-"&TEXT(MID(dms_CRYf_y4,3,2)+2,"00") -> 2021-22 | N99: dms_CRYf_y5 | O99: =VALUE(LEFT(dms_CRYc_y4,4)+1) -> 2022 | P99: dms_CRYc_y5
B100: 6 | C100: dms_FRCP_y6 | D100: 6 | E100: CRCP_y6 | F100: =IF(dms_RPT="financial",VALUE(LEFT(dms_FRCP_y5,4)+1)&"-"&TEXT(VALUE(RIGHT(dms_FRCP_y5,2)+1),"00"),VALUE(LEFT(dms_FRCP_y5,4)+1)) -> 2025-26 | G100: dms_FRCP_y6 | H100: =IF(dms_RPT="financial",VALUE(LEFT(dms_CRCP_yV,4)-1)&"-"&TEXT(VALUE(MID(dms_CRCP_yV,3,2)),"00"),VALUE(LEFT(dms_CRCP_yV,4)-1)) -> 2014-15 | I100: dms_CRCP_yU | J100: 6 | M100: =VALUE(LEFT(dms_CRYf_y5,4)+1)&"-"&TEXT(MID(dms_CRYf_y5,3,2)+2,"00") -> 2022-23 | N100: dms_CRYf_y6 | O100: =VALUE(LEFT(dms_CRYc_y5,4)+1) -> 2023 | P100: dms_CRYc_y6
B101: 7 | C101: dms_FRCP_y7 | D101: 7 | E101: CRCP_y7 | F101: =IF(dms_RPT="financial",VALUE(LEFT(dms_FRCP_y6,4)+1)&"-"&TEXT(VALUE(RIGHT(dms_FRCP_y6,2)+1),"00"),VALUE(LEFT(dms_FRCP_y6,4)+1)) -> 2026-27 | G101: dms_FRCP_y7 | H101: =IF(dms_RPT="financial",VALUE(LEFT(dms_CRCP_yU,4)-1)&"-"&TEXT(VALUE(MID(dms_CRCP_yU,3,2)),"00"),VALUE(LEFT(dms_CRCP_yU,4)-1)) -> 2013-14 | I101: dms_CRCP_yT | J101: 7 | M101: =VALUE(LEFT(dms_CRYf_y6,4)+1)&"-"&TEXT(MID(dms_CRYf_y6,3,2)+2,"00") -> 2023-24 | N101: dms_CRYf_y7 | O101: =VALUE(LEFT(dms_CRYc_y6,4)+1) -> 2024 | P101: dms_CRYc_y7 | Z101: Table 6.1 telephone answering - row descriptions and start date
B102: 8 | C102: dms_FRCP_y8 | D102: 8 | E102: CRCP_y8 | F102: =IF(dms_RPT="financial",VALUE(LEFT(dms_FRCP_y7,4)+1)&"-"&TEXT(VALUE(RIGHT(dms_FRCP_y7,2)+1),"00"),VALUE(LEFT(dms_FRCP_y7,4)+1)) -> 2027-28 | G102: dms_FRCP_y8 | H102: =IF(dms_RPT="financial",VALUE(LEFT(dms_CRCP_yT,4)-1)&"-"&TEXT(VALUE(MID(dms_CRCP_yT,3,2)),"00"),VALUE(LEFT(dms_CRCP_yT,4)-1)) -> 2012-13 | I102: dms_CRCP_yS | J102: 8 | M102: =VALUE(LEFT(dms_CRYf_y7,4)+1)&"-"&TEXT(MID(dms_CRYf_y7,3,2)+2,"00") -> 2024-25 | N102: dms_CRYf_y8 | O102: =VALUE(LEFT(dms_CRYc_y7,4)+1) -> 2025 | P102: dms_CRYc_y8 | Z102: dms_060101_Rows | AA102: dms_060102_Rows | AB102: dms_060101_StartDateTxt
B103: 9 | C103: dms_FRCP_y9 | D103: 9 | E103: CRCP_y9 | F103: =IF(dms_RPT="financial",VALUE(LEFT(dms_FRCP_y8,4)+1)&"-"&TEXT(VALUE(RIGHT(dms_FRCP_y8,2)+1),"00"),VALUE(LEFT(dms_FRCP_y8,4)+1)) -> 2028-29 | G103: dms_FRCP_y9 | H103: =IF(dms_RPT="financial",VALUE(LEFT(dms_CRCP_yS,4)-1)&"-"&TEXT(VALUE(MID(dms_CRCP_yS,3,2)),"00"),VALUE(LEFT(dms_CRCP_yS,4)-1)) -> 2011-12 | I103: dms_CRCP_yR | J103: 9 | M103: =VALUE(LEFT(dms_CRYf_y8,4)+1)&"-"&TEXT(MID(dms_CRYf_y8,3,2)+2,"00") -> 2025-26 | N103: dms_CRYf_y9 | O103: =VALUE(LEFT(dms_CRYc_y8,4)+1) -> 2026 | P103: dms_CRYc_y9 | Z103: Total number of calls (after removing excluded events) | AA103: Number of calls answered within 30 seconds (after excluding excluded events) | AB103: =dms_060701_StartDateTxt -> 1-Jul-2017
B104: 10 | C104: =IFERROR(IF(dms_Model="ARR",(MAX(0,dms_0608_LastRow-dms_0608_OffsetRows)),"not an ARR"),"6.8 not present") | D104: 10 | E104: =IFERROR(IF(dms_Model="ARR",(MAX(0,dms_0608_LastRow-dms_0608_OffsetRows)),"not an ARR"),"6.8 not present") | F104: =IF(dms_RPT="financial",VALUE(LEFT(dms_FRCP_y9,4)+1)&"-"&TEXT(VALUE(RIGHT(dms_FRCP_y9,2)+1),"00"),VALUE(LEFT(dms_FRCP_y9,4)+1)) -> 2029-30 | G104: dms_FRCP_y10 | H104: =IF(dms_RPT="financial",VALUE(LEFT(dms_CRCP_yR,4)-1)&"-"&TEXT(VALUE(MID(dms_CRCP_yR,3,2)),"00"),VALUE(LEFT(dms_CRCP_yR,4)-1)) -> 2010-11 | I104: dms_CRCP_yQ | J104: 10 | M104: =VALUE(LEFT(dms_CRYf_y9,4)+1)&"-"&TEXT(MID(dms_CRYf_y9,3,2)+2,"00") -> 2026-27 | N104: dms_CRYf_y10 | O104: =VALUE(LEFT(dms_CRYc_y9,4)+1) -> 2027 | P104: dms_CRYc_y10
B105: 11 | C105: dms_FRCP_y11 | D105: 11 | E105: CRCP_y11 | F105: =IF(dms_RPT="financial",VALUE(LEFT(dms_FRCP_y10,4)+1)&"-"&TEXT(VALUE(RIGHT(dms_FRCP_y10,2)+1),"00"),VALUE(LEFT(dms_FRCP_y10,4)+1)) -> 2030-31 | G105: dms_FRCP_y11 | H105: =IF(dms_RPT="financial",VALUE(LEFT(dms_CRCP_yQ,4)-1)&"-"&TEXT(VALUE(MID(dms_CRCP_yQ,3,2)),"00"),VALUE(LEFT(dms_CRCP_yQ,4)-1)) -> 2009-10 | I105: dms_CRCP_yP | J105: 11 | M105: =VALUE(LEFT(dms_CRYf_y10,4)+1)&"-"&TEXT(MID(dms_CRYf_y10,3,2)+2,"00") -> 2027-28 | N105: dms_CRYf_y11 | O105: =VALUE(LEFT(dms_CRYc_y10,4)+1) -> 2028 | P105: dms_CRYc_y11
B106: 12 | C106: dms_FRCP_y12 | D106: 12 | E106: CRCP_y12 | F106: =IF(dms_RPT="financial",VALUE(LEFT(dms_FRCP_y11,4)+1)&"-"&TEXT(VALUE(RIGHT(dms_FRCP_y11,2)+1),"00"),VALUE(LEFT(dms_FRCP_y11,4)+1)) -> 2031-32 | G106: dms_FRCP_y12 | H106: =IF(dms_RPT="financial",VALUE(LEFT(dms_CRCP_yP,4)-1)&"-"&TEXT(VALUE(MID(dms_CRCP_yP,3,2)),"00"),VALUE(LEFT(dms_CRCP_yP,4)-1)) -> 2008-09 | I106: dms_CRCP_yO | J106: 12 | M106: =VALUE(LEFT(dms_CRYf_y11,4)+1)&"-"&TEXT(MID(dms_CRYf_y11,3,2)+2,"00") -> 2028-29 | N106: dms_CRYf_y12 | O106: =VALUE(LEFT(dms_CRYc_y11,4)+1) -> 2029 | P106: dms_CRYc_y12
B107: 13 | C107: dms_FRCP_y13 | D107: 13 | E107: CRCP_y13 | F107: =IF(dms_RPT="financial",VALUE(LEFT(dms_FRCP_y12,4)+1)&"-"&TEXT(VALUE(RIGHT(dms_FRCP_y12,2)+1),"00"),VALUE(LEFT(dms_FRCP_y12,4)+1)) -> 2032-33 | G107: dms_FRCP_y13 | H107: =IF(dms_RPT="financial",VALUE(LEFT(dms_CRCP_yO,4)-1)&"-"&TEXT(VALUE(MID(dms_CRCP_yO,3,2)),"00"),VALUE(LEFT(dms_CRCP_yO,4)-1)) -> 2007-08 | I107: dms_CRCP_yN | J107: 13 | M107: =VALUE(LEFT(dms_CRYf_y12,4)+1)&"-"&TEXT(MID(dms_CRYf_y12,3,2)+2,"00") -> 2029-30 | N107: dms_CRYf_y13 | O107: =VALUE(LEFT(dms_CRYc_y12,4)+1) -> 2030 | P107: dms_CRYc_y13 | AE107: dms_0603_FeederList | AF107: =INDEX(dms_FeederName_1,MATCH(dms_TradingName,dms_TradingName_List)) -> CBD | AG107: =INDEX(dms_FeederName_2,MATCH(dms_TradingName,dms_TradingName_List)) -> Urban | AH107: =INDEX(dms_FeederName_3,MATCH(dms_TradingName,dms_TradingName_List)) -> Short rural | AI107: =INDEX(dms_FeederName_4,MATCH(dms_TradingName,dms_TradingName_List)) -> Long rural
B108: 14 | C108: dms_FRCP_y14 | D108: 14 | E108: CRCP_y14 | F108: =IF(dms_RPT="financial",VALUE(LEFT(dms_FRCP_y13,4)+1)&"-"&TEXT(VALUE(RIGHT(dms_FRCP_y13,2)+1),"00"),VALUE(LEFT(dms_FRCP_y13,4)+1)) -> 2033-34 | G108: dms_FRCP_y14 | H108: =IF(dms_RPT="financial",VALUE(LEFT(dms_CRCP_yN,4)-1)&"-"&TEXT(VALUE(MID(dms_CRCP_yN,3,2)),"00"),VALUE(LEFT(dms_CRCP_yN,4)-1)) -> 2006-07 | I108: dms_CRCP_yM | J108: 14 | M108: =VALUE(LEFT(dms_CRYf_y13,4)+1)&"-"&TEXT(MID(dms_CRYf_y13,3,2)+2,"00") -> 2030-31 | N108: dms_CRYf_y14 | O108: =VALUE(LEFT(dms_CRYc_y13,4)+1) -> 2031 | P108: dms_CRYc_y14 | Z108: Table 6.7.1 - daily performance data - unplanned - MAIFI -- row descriptions and header named range values
B109: 15 | C109: dms_FRCP_y15 | D109: 15 | E109: CRCP_y15 | F109: =IF(dms_RPT="financial",VALUE(LEFT(dms_FRCP_y14,4)+1)&"-"&TEXT(VALUE(RIGHT(dms_FRCP_y14,2)+1),"00"),VALUE(LEFT(dms_FRCP_y14,4)+1)) -> 2034-35 | G109: dms_FRCP_y15 | H109: =IF(dms_RPT="financial",VALUE(LEFT(dms_CRCP_yM,4)-1)&"-"&TEXT(VALUE(MID(dms_CRCP_yM,3,2)),"00"),VALUE(LEFT(dms_CRCP_yM,4)-1)) -> 2005-06 | I109: dms_CRCP_yL | J109: 15 | M109: =VALUE(LEFT(dms_CRYf_y14,4)+1)&"-"&TEXT(MID(dms_CRYf_y14,3,2)+2,"00") -> 2031-32 | N109: dms_CRYf_y15 | O109: =VALUE(LEFT(dms_CRYc_y14,4)+1) -> 2032 | P109: dms_CRYc_y15 | Z109: These headings (Lists) are determined from the INDEX/MATCH function on the NSP selected on the Business & other details sheet
M110: =VALUE(LEFT(dms_CRYf_y15,4)+1)&"-"&TEXT(MID(dms_CRYf_y15,3,2)+2,"00") -> 2032-33 | N110: dms_CRYf_y16 | O110: =VALUE(LEFT(dms_CRYc_y15,4)+1) -> 2033 | P110: dms_CRYc_y16 | Y110: dms_060701_Feeder_Header_Lvl4 | Z110: =INDEX(dms_FeederName_1,MATCH(dms_TradingName,dms_TradingName_List)) -> CBD | AA110: =INDEX(dms_FeederName_1,MATCH(dms_TradingName,dms_TradingName_List)) -> CBD | AB110: =INDEX(dms_FeederName_2,MATCH(dms_TradingName,dms_TradingName_List)) -> Urban | AC110: =INDEX(dms_FeederName_2,MATCH(dms_TradingName,dms_TradingName_List)) -> Urban | AD110: =INDEX(dms_FeederName_3,MATCH(dms_TradingName,dms_TradingName_List)) -> Short rural | AE110: =INDEX(dms_FeederName_3,MATCH(dms_TradingName,dms_TradingName_List)) -> Short rural | AF110: =INDEX(dms_FeederName_4,MATCH(dms_TradingName,dms_TradingName_List)) -> Long rural | AG110: =INDEX(dms_FeederName_4,MATCH(dms_TradingName,dms_TradingName_List)) -> Long rural | AH110: =IF((INDEX(dms_FeederName_5,MATCH(dms_TradingName,dms_TradingName_List))=0),"Network",(INDEX(dms_FeederName_5,MATCH(dms_TradingName,dms_TradingName_List)))) -> Network | AI110: =IF((INDEX(dms_FeederName_5,MATCH(dms_TradingName,dms_TradingName_List))=0),"Network",(INDEX(dms_FeederName_5,MATCH(dms_TradingName,dms_TradingName_List)))) -> Network | AJ110: Network | AK110: Network
B111: These are drop down lists for businesses to select the correct FRCP_y1 on the business and other details worksheet. This also populates the column headings in the worksheets | M111: =VALUE(LEFT(dms_CRYf_y16,4)+1)&"-"&TEXT(MID(dms_CRYf_y16,3,2)+2,"00") -> 2033-34 | N111: dms_CRYf_y17 | O111: =VALUE(LEFT(dms_CRYc_y16,4)+1) -> 2034 | P111: dms_CRYc_y17
B112: dms_RCP_fyear_list | C112: dms_CRY_ListF | D112: dms_CRY_ListC | E112: dms_RCP_cyear_list | F112: dms_FRCP_fyear_list | G112: dms_FRCP_ListF | H112: dms_FRCP_ListC | I112: dms_FRCP_cyear_list | M112: =VALUE(LEFT(dms_CRYf_y17,4)+1)&"-"&TEXT(MID(dms_CRYf_y17,3,2)+2,"00") -> 2034-35 | N112: dms_CRYf_y18 | O112: =VALUE(LEFT(dms_CRYc_y17,4)+1) -> 2035 | P112: dms_CRYc_y18 | Y112: dms_060701_Rows | Z112: All events | AA112: After removing excluded events | AB112: All events | AC112: After removing excluded events | AD112: All events | AE112: After removing excluded events | AF112: All events | AG112: After removing excluded events | AH112: All events | AI112: After removing excluded events | AJ112: All events | AK112: After removing excluded events
B113: dms_fy1 | C113: 2005-06 | D113: 2006 | E113: dms_cy1 | F113: dms_frcp_fy1 | G113: 2010-11 | H113: 2011 | I113: dms_crcp_cy1 | M113: =VALUE(LEFT(dms_CRYf_y18,4)+1)&"-"&TEXT(MID(dms_CRYf_y18,3,2)+2,"00") -> 2035-36 | N113: dms_CRYf_y19 | O113: =VALUE(LEFT(dms_CRYc_y18,4)+1) -> 2036 | P113: dms_CRYc_y19 | Z113: the number of column headings changes from 10 to 12 depending on the number of feeder categories for the NSP
B114: dms_fy2 | C114: 2006-07 | D114: 2007 | E114: dms_cy2 | F114: dms_frcp_fy2 | G114: 2011-12 | H114: 2012 | I114: dms_crcp_cy2 | M114: =VALUE(LEFT(dms_CRYf_y19,4)+1)&"-"&TEXT(MID(dms_CRYf_y19,3,2)+2,"00") -> 2036-37 | N114: dms_CRYf_y20 | O114: =VALUE(LEFT(dms_CRYc_y19,4)+1) -> 2037 | P114: dms_CRYc_y20
B115: dms_fy3 | C115: 2007-08 | D115: 2008 | E115: dms_cy3 | F115: dms_frcp_fy3 | G115: 2012-13 | H115: 2013 | I115: dms_crcp_cy3
B116: dms_fy4 | C116: 2008-09 | D116: 2009 | E116: dms_cy4 | F116: dms_frcp_fy4 | G116: 2013-14 | H116: 2014 | I116: dms_crcp_cy4
B117: dms_fy5 | C117: 2009-10 | D117: 2010 | E117: dms_cy5 | F117: dms_frcp_fy5 | G117: 2014-15 | H117: 2015 | I117: dms_crcp_cy5
B118: dms_fy6 | C118: 2010-11 | D118: 2011 | E118: dms_cy6 | F118: dms_frcp_fy6 | G118: 2015-16 | H118: 2016 | I118: dms_crcp_cy6 | Z118: Table 6.8.1 - row descriptions
B119: dms_fy7 | C119: 2011-12 | D119: 2012 | E119: dms_cy7 | F119: dms_frcp_fy7 | G119: 2016-17 | H119: 2017 | I119: dms_crcp_cy7 | Z119: dms_060801_01_Rows | AA119: dms_060801_02_Rows | AB119: dms_060801_03_Rows | AC119: dms_060801_04_Rows
B120: dms_fy8 | C120: 2012-13 | D120: 2013 | E120: dms_cy8 | F120: dms_frcp_fy8 | G120: 2017-18 | H120: 2018 | I120: dms_crcp_cy8 | L120: 2005-06 | M120: 2006 | Z120: Number of interruptions | AA120: Duration of interruptions | AB120: Total unplanned minutes off supply | AC120: Effect on unplanned MAIFI
B121: dms_fy9 | C121: 2013-14 | D121: 2014 | E121: dms_cy9 | F121: dms_frcp_fy9 | G121: 2018-19 | H121: 2019 | I121: dms_crcp_cy9 | L121: 2006-07 | M121: 2007
B122: dms_fy10 | C122: 2014-15 | D122: 2015 | E122: dms_cy10 | F122: dms_frcp_fy10 | G122: 2019-20 | H122: 2020 | I122: dms_crcp_cy10 | L122: 2007-08 | M122: 2008
B123: dms_fy11 | C123: 2015-16 | D123: 2016 | E123: dms_cy11 | F123: dms_frcp_fy11 | G123: 2020-21 | H123: 2021 | I123: dms_crcp_cy11 | L123: 2008-09 | M123: 2009
B124: dms_fy12 | C124: 2016-17 | D124: 2017 | E124: dms_cy12 | F124: dms_frcp_fy12 | G124: 2021-22 | H124: 2022 | I124: dms_crcp_cy12 | L124: 2009-10 | M124: 2010
B125: dms_fy13 | C125: 2017-18 | D125: 2018 | E125: dms_cy13 | F125: dms_frcp_fy13 | G125: 2022-23 | H125: 2023 | I125: dms_crcp_cy13 | L125: 2010-11 | M125: 2011 | Z125: Table 7.9.4 - market impact component - row descriptions
B126: dms_fy14 | C126: 2018-19 | D126: 2019 | E126: dms_cy14 | F126: dms_frcp_fy14 | G126: 2023-24 | H126: 2024 | I126: dms_crcp_cy14 | L126: 2011-12 | M126: 2012 | Y126: dms_070904_01_Rows | Z126: without exclusions | AA126: with exclusions
B127: dms_fy15 | C127: 2019-20 | D127: 2020 | E127: dms_cy15 | F127: dms_frcp_fy15 | G127: 2024-25 | H127: 2025 | I127: dms_crcp_cy15 | L127: 2012-13 | M127: 2013
B128: dms_fy16 | C128: 2020-21 | D128: 2021 | E128: dms_cy16 | L128: 2013-14 | M128: 2014
B129: dms_fy17 | C129: 2021-22 | D129: 2022 | E129: dms_cy17 | L129: 2014-15 | M129: 2015
B130: dms_fy18 | C130: 2022-23 | D130: 2023 | E130: dms_cy18 | L130: 2015-16 | M130: 2016
B131: dms_fy19 | C131: 2023-24 | D131: 2024 | E131: dms_cy19 | L131: 2016-17 | M131: 2017 | Z131: Use this to add to existing files
B132: dms_fy20 | C132: 2024-25 | D132: 2025 | E132: dms_cy20 | L132: 2017-18 | M132: 2018 | Z132: ARR's 6.8 STPIS exclusions
L133: 2018-19 | M133: 2019 | Z133: dms_060801_Event_Date | AA133: dms_060801_OutageID | AB133: dms_060801_FeederID | AC133: dms_060801_FeederClass | AD133: dms_060801_CauseID | AE133: dms_060801_01_Values | AF133: dms_060801_02_Values | AG133: dms_060801_03_Values | AH133: dms_060801_Excl_Cat | AI133: dms_060801_04_Values
L134: 2019-20 | M134: 2020
L135: 2020-21 | M135: 2021
L136: 2021-22 | M136: 2022 | Z136: CA 6.3 sustained interruptions
L137: 2022-23 | M137: 2023 | Z137: dms_060301_Event_Date | AA137: dms_060301_Event_Time | AB137: dms_060301_AssetID | AC137: dms_060301_FeederClass | AD137: dms_060301_Reason | AE137: dms_060301_DetailedReason | AF137: dms_060301_CustNo_Affected_Values | AG137: dms_060301_Avg_Duration_Sustained_Int_Values | AH137: dms_060301_Effect_unplanned_SAIDI_Values | AI137: dms_060301_Effect_unplanned_SAIFI_Values | AJ137: dms_060301_MED
L138: 2023-24 | M138: 2024
L139: 2024-25 | M139: 2025
L140: 2025-26 | M140: 2026
L141: 2026-27 | M141: 2027
L142: 2027-28 | M142: 2028
L143: 2028-29 | M143: 2029
L144: 2029-30 | M144: 2030
L145: 2030-31 | M145: 2031
L146: 2031-32 | M146: 2032
L147: 2032-33 | M147: 2033
L148: 2033-34 | M148: 2034
L149: 2034-35 | M149: 2035
L150: 2035-36 | M150: 2036

Sheet Instructions
B2: =CONCATENATE(dms_Segment," Network Service Provider") -> Distribution Network Service Provider
B3: Annual Reporting RIN Template
C4: =CONCATENATE("This template is to be used by ",dms_TradingName," to fulfil its reporting obligations to the AER.") -> This template is to be used by Endeavour Energy to fulfil its reporting obligations to the AER.
C5: INSTRUCTIONS
C6: Complete the Business & other details worksheet before entering data or values in any other worksheets. The Business & other details worksheet is linked to other worksheets within the workbook and automatically generates certain column headings and conditional formatting.
C8: Identifying CONFIDENTIAL INFORMATION: Please use the macro at the top of each worksheet to identify confidential information.
C9: -Do this by selecting the cell or cells that contain confidential information and then run the Mark selected cells as CONFIDENTIAL macro. This will format the cells a specific colour that is identified by the AER's database which in turn marks that information as confidential. -To reverse this, select the cell or cells and run the Return cells to NON-CONFIDENTIAL macro
C11: UNITS OF MEASURE All amounts are to be unrounded and reported in nominal terms on a one for one basis: that is 1000 is to be entered as '1000'. Applicable units of measure may be identified in the table column headings or row descriptors.
C13: COLOUR CODING OF INPUT / NON-INPUT CELLS:
D14: Yellow = Input cell (mandatory)
D15: Darker yellow = input cell (mandatory)
D16: Orange = input cell (if data available)
D17: Grey = Not applicable/No inputs required
D18: PLEASE DO NOT ENTER TEXT into cells that are to contain numeric data.
C21: WORKSHEET NAVIGATION Many tables in the worksheets have been "grouped" to allow for easy navigation. To ungroup or group data use the outline symbols in the left margin of excel (for Row groupings) or above the columns (for column groupings).
C23: RETURNING COMPLETED RESPONSES Please return four (4) files - using the locked template - to the AER: 1. A confidential version which must contain a complete set of all responses with confidential information marked using the Mark selected cells CONFIDENTIAL macro. 2. An actual and an estimate version with confidential information marked using the Mark selection CONFIDENTIAL macro and which has been completed using the locked template file provided by the AER. 3. A public version with confidential information either removed completely or aggregated in some form together with writtten consent to disclose the public version of the response. Use the drop down box on the Business and other details worksheet to identify the file as either confidential ('consolidated') or public. If the confidential and public versions of the consolidated file are exactly the same, only the public version of the file needs to be submitted to the AER.
C25: SUBMITTING AMENDED DATA TO THE AER If an NSP wishes to correct data previously submitted to the AER it should resubmit that data using the original completed submission as the starting point. Please make any necessary changes to the data. Data that is not being amended should be left unchanged. NSPs must identify the reason for the amendments in the Amendment Reason box on the Business and other details worksheet. NSPs may provide further details regarding any amendments in the Amendments worksheet. .
C26: NSP may use Amended Data macro to highlight cells that contain amended data. NB: if data is also CONFIDENTIAL, re-apply the Confidentiality macro after applying the Amended macro
C27: Please resubmit two (2) files - a confidential version and a public version of the amended submission to the AER

Sheet Contents
B1: REGULATORY REPORTING STATEMENT
B2: =dms_TradingName -> Endeavour Energy
B3: =CONCATENATE("Benchmarking RIN response ",CRY) -> Benchmarking RIN response 2017-18
B5: CONTENTS
B12: 3. ECONOMIC BENCHMARKING

Sheet Business & other details
B1: =IF(dms_DataQuality="backcast",INDEX(dms_Worksheet_List,MATCH(dms_Model,dms_Model_List))&" BACKCAST",INDEX(dms_Worksheet_List,MATCH(dms_Model,dms_Model_List))) -> ECONOMIC BENCHMARKING
B2: =INDEX(dms_TradingNameFull_List,MATCH(dms_TradingName,dms_TradingName_List)) -> Endeavour Energy
B3: =IF(SUM(dms_SingleYear_Model)>0,CONCATENATE(CRY),CONCATENATE(FRCP_y1," to ",dms_MultiYear_FinalYear_Result)) -> 2017-18
B4: BUSINESS & OTHER DETAILS
B7: Instructions
B8: Complete the following business details regulatory template before entering data or values in any other regulatory template. This regulatory template is linked to other cells within the spreadsheet and automatically generates column headings and conditional formatting to distinguish business specific input and non-input cells.
B10: SUBMISSION PARTICULARS INPUT SHEETS
B12: ENTITY DETAILS
B14: Short name | C14: Endeavour Energy | F14: Select business name from drop down list first
B15: ACN / ABN | C15: =INDEX(dms_ABN_List,MATCH(dms_TradingName,dms_TradingName_List)) -> 11247365823
B18: Business address | C18: Address 1 | E18: =INDEX(dms_Addr1_List,MATCH(dms_TradingName,dms_TradingName_List)) -> 51 Huntingwood Drive
D19: Address 2 | E19: =IF(ISBLANK(INDEX(dms_Addr2_List,MATCH(dms_TradingName,dms_TradingName_List))),"",(INDEX(dms_Addr2_List,MATCH(dms_TradingName,dms_TradingName_List)))) -> 
C20: Suburb | E20: =INDEX(dms_Suburb_List,MATCH(dms_TradingName,dms_TradingName_List)) -> HUNTINGWOOD
D21: State | E21: =INDEX(dms_State_List,MATCH(dms_TradingName,dms_TradingName_List)) -> NSW | F21: p/code | G21: =INDEX(dms_PostCode_List,MATCH(dms_TradingName,dms_TradingName_List)) -> 2148
B23: Postal address | C23: Address 1 | E23: =INDEX(dms_PAddr1_List,MATCH(dms_TradingName,dms_TradingName_List)) -> PO Box 811
D24: Address 2 | E24: =IF(ISBLANK(INDEX(dms_PAddr2_List,MATCH(dms_TradingName,dms_TradingName_List))),"",(INDEX(dms_PAddr2_List,MATCH(dms_TradingName,dms_TradingName_List)))) -> 
C25: Suburb | E25: =INDEX(dms_PSuburb_List,MATCH(dms_TradingName,dms_TradingName_List)) -> SEVEN HILLS
D26: State | E26: =INDEX(dms_PState_List,MATCH(dms_TradingName,dms_TradingName_List)) -> NSW | F26: p/code | G26: =INDEX(dms_PPostCode_List,MATCH(dms_TradingName,dms_TradingName_List)) -> 1730
B29: Contact name/s | C29: Fiona Place
B30: Contact phone/s | C30: 02 9853 6302
B31: Contact email address/s | C31: fiona.place@endeavourenergy.com.au
B33: REGULATORY CONTROL PERIODS
B35: Forthcoming regulatory control period | C35: 2020-21 | D35: =dms_FRCP_y2 -> 2021-22 | E35: =dms_FRCP_y3 -> 2022-23 | F35: =dms_FRCP_y4 -> 2023-24 | G35: =dms_FRCP_y5 -> 2024-25
C36: =dms_FRCP_y6 -> 2025-26 | D36: =dms_FRCP_y7 -> 2026-27 | E36: =dms_FRCP_y8 -> 2027-28 | F36: =dms_FRCP_y9 -> 2028-29 | G36: =dms_FRCP_y10 -> 2029-30
B39: Current regulatory control period | C39: =dms_CRCP_FirstYear_Result -> 2015-16 | D39: =IF(dms_RPT="financial",VALUE(LEFT(CRCP_y1,4)+1)&"-"&TEXT(MID(CRCP_y1,3,2)+2,"00"),VALUE(LEFT(CRCP_y1,4)+1)) -> 2016-17 | E39: =IF(dms_RPT="financial",VALUE(LEFT(CRCP_y1,4)+2)&"-"&TEXT(VALUE(MID(CRCP_y1,3,2)+3),"00"),VALUE(LEFT(CRCP_y1,4)+2)) -> 2017-18 | F39: =IF(dms_RPT="financial",VALUE(LEFT(CRCP_y1,4)+3)&"-"&TEXT(MID(CRCP_y1,3,2)+4,"00"),VALUE(LEFT(CRCP_y1,4)+3)) -> 2018-19 | G39: =IF(dms_RPT="financial",VALUE(LEFT(CRCP_y1,4)+4)&"-"&TEXT(MID(CRCP_y1,3,2)+5,"00"),VALUE(LEFT(CRCP_y1,4)+4)) -> 2019-20
C40: =IF(dms_RPT="financial",VALUE(LEFT(CRCP_y1,4)+5)&"-"&TEXT(MID(CRCP_y1,3,2)+6,"00"),VALUE(LEFT(CRCP_y1,4)+5)) -> 2020-21 | D40: =IF(dms_RPT="financial",VALUE(LEFT(CRCP_y1,4)+6)&"-"&TEXT(MID(CRCP_y1,3,2)+7,"00"),VALUE(LEFT(CRCP_y1,4)+6)) -> 2021-22 | E40: =IF(dms_RPT="financial",VALUE(LEFT(CRCP_y1,4)+7)&"-"&TEXT(MID(CRCP_y1,3,2)+8,"00"),VALUE(LEFT(CRCP_y1,4)+7)) -> 2022-23 | F40: =IF(dms_RPT="financial",VALUE(LEFT(CRCP_y1,4)+8)&"-"&TEXT(MID(CRCP_y1,3,2)+9,"00"),VALUE(LEFT(CRCP_y1,4)+8)) -> 2023-24 | G40: =IF(dms_RPT="financial",VALUE(LEFT(CRCP_y1,4)+9)&"-"&TEXT(MID(CRCP_y1,3,2)+10,"00"),VALUE(LEFT(CRCP_y1,4)+9)) -> 2024-25
C41: =IF(dms_RPT="financial",VALUE(LEFT(CRCP_y1,4)+10)&"-"&TEXT(MID(CRCP_y1,3,2)+11,"00"),VALUE(LEFT(CRCP_y1,4)+10)) -> 2025-26 | D41: =IF(dms_RPT="financial",VALUE(LEFT(CRCP_y1,4)+11)&"-"&TEXT(MID(CRCP_y1,3,2)+12,"00"),VALUE(LEFT(CRCP_y1,4)+11)) -> 2026-27 | E41: =IF(dms_RPT="financial",VALUE(LEFT(CRCP_y1,4)+12)&"-"&TEXT(MID(CRCP_y1,3,2)+13,"00"),VALUE(LEFT(CRCP_y1,4)+12)) -> 2027-28 | F41: =IF(dms_RPT="financial",VALUE(LEFT(CRCP_y1,4)+13)&"-"&TEXT(MID(CRCP_y1,3,2)+14,"00"),VALUE(LEFT(CRCP_y1,4)+13)) -> 2028-29 | G41: =IF(dms_RPT="financial",VALUE(LEFT(CRCP_y1,4)+14)&"-"&TEXT(MID(CRCP_y1,3,2)+15,"00"),VALUE(LEFT(CRCP_y1,4)+14)) -> 2029-30
B44: Previous regulatory control period | C44: =IF(dms_RPT="financial",VALUE(LEFT(PRCP_y2,4)-1)&"-"&TEXT(VALUE(MID(PRCP_y2,3,2)),"00"),VALUE(LEFT(PRCP_y2,4)-1)) -> 2010-11 | D44: =IF(dms_RPT="financial",VALUE(LEFT(PRCP_y3,4)-1)&"-"&TEXT(VALUE(MID(PRCP_y3,3,2)),"00"),VALUE(LEFT(PRCP_y3,4)-1)) -> 2011-12 | E44: =IF(dms_RPT="financial",VALUE(LEFT(PRCP_y4,4)-1)&"-"&TEXT(VALUE(MID(PRCP_y4,3,2)),"00"),VALUE(LEFT(PRCP_y4,4)-1)) -> 2012-13 | F44: =IF(dms_RPT="financial",VALUE(LEFT(PRCP_y5,4)-1)&"-"&TEXT(VALUE(RIGHT(PRCP_y5,2)-1),"00"),VALUE(LEFT(PRCP_y5,4)-1)) -> 2013-14 | G44: =IF(dms_RPT="financial",VALUE(LEFT(CRCP_y1,4)-1)&"-"&TEXT(VALUE(RIGHT(CRCP_y1,2)-1),"00"),VALUE(LEFT(CRCP_y1,4)-1)) -> 2014-15
B48: Commencing regulatory year | C48: 2017-18 | D48: CRY
B50: Last completed regulatory year | C50: 2017-18 | D50: dms_FinalYear
C54: IF THIS IS AN ABC RIN - make sure the the named range CRY is applied and the named range dms_dollar_nom_UOM is applied
C55: IF THIS IS A RESET RIN - make sure the named ranges CRY and dms_dollar_nom_UOM are NOT present in the workbook
C56: FOR ABC RINS THAT SPAN MULTIPLE YEARS - make sure MultiYear Flag is set and final year entered as required
B58: Source | C58: Reporting | E58: Please select the correct submission type from the dropdown list.
B59: Data quality (actual, estimate, public, consolidated) | C59: Public | E59: Use Consolidated for Consolidated Confidential version Use Public for Consolidated Public version
B60: Amended RIN submission - amendment reason | C60: .
B61: Submission Date | C61: 2018-10-31 | D61: dms_SubmissionDate | E61: Please enter date this file submitted to AER (dd/mm/yyyy)
B62: EBSS - First application of scheme in forthcoming period? | C62: No
B63: Sector | C63: =INDEX(dms_Sector_List,MATCH(dms_TradingName,dms_TradingName_List)) -> Electricity | D63: dms_Sector | E63: =INDEX(dms_Sector_List,MATCH(dms_TradingName,dms_TradingName_List))
B64: Segment | C64: =INDEX(dms_Segment_List,MATCH(dms_TradingName,dms_TradingName_List)) -> Distribution | D64: dms_Segment | E64: =INDEX(dms_Segment_List,MATCH(dms_TradingName,dms_TradingName_List))
B65: Regulatory Year Ending | C65: =IF(dms_MultiYear_Flag=1,LEFT(dms_Specified_FinalYear,2)&RIGHT(dms_Specified_FinalYear,2),INDEX(dms_RYE_Formula_Result,MATCH(dms_Model,dms_Model_List))) -> 2018 | D65: dms_RYE | E65: =IF(dms_MultiYear_Flag=1,LEFT(dms_Specified_FinalYear,2)&RIGHT(dms_Specified_FinalYear,2),INDEX(dms_RYE_Formula_Result,MATCH(dms_Model,dms_Model_List)))
B66: Reporting Period Type | C66: =INDEX(dms_RPT_List,MATCH(dms_TradingName,dms_TradingName_List)) -> Financial | D66: dms_RPT | E66: =INDEX(dms_RPT_List,MATCH(dms_TradingName,dms_TradingName_List))
B67: Model or RIN Type | C67: EB | D67: dms_Model | E67: Drop down selection
B68: EB/CA Unit of Measure for Monetary Values | C68: $0s | D68: dms_dollar_nom_UOM | E68: If the cover sheet is attached to an ABC RIN make the NAMED RANGE on this field is set
B69: Security Classification | C69: Public | D69: dms_Classification | E69: Always Public
B70: Jurisdiction | C70: =INDEX(dms_JurisdictionList,MATCH(dms_TradingName,dms_TradingName_List)) -> NSW | D70: dms_Jurisdiction | E70: =INDEX(dms_JurisdictionList,MATCH(dms_TradingName,dms_TradingName_List))
B71: FOR RESET RINS
B72: CRY-1 | C72: =VALUE(LEFT(CRY,4)-1) -> 2016 | D72: dms_Left_CRY_minus1 | E72: =VALUE(LEFT(CRY,4)-1) | G72: Not used in Reset RINS but may be useful in other cases
B73: Dollar $ real month | C73: =INDEX(dms_RPTMonth_List,MATCH(dms_TradingName,dms_TradingName_List)) -> June | D73: dms_RPTMonth | E73: =INDEX(dms_RPTMonth_List,MATCH(dms_TradingName,dms_TradingName_List))
B74: Dollar $ real (the last month before the FRCP_y1) | C74: =IF(SUM(dms_SingleYear_Model)>0,CONCATENATE(dms_RPTMonth)&" "&VALUE((LEFT(CRY,2))&RIGHT(CRY,2)),CONCATENATE(dms_RPTMonth)&" "&VALUE((LEFT(dms_CRCP_FinalYear_Result,2)&RIGHT(dms_CRCP_FinalYear_Result,2)))) -> June 2018 | D74: dms_DollarReal | E74: =IF(SUM(dms_SingleYear_Model)>0,CONCATENATE(dms_RPTMonth)&" "&VALUE((LEFT(CRY,2))&RIGHT(CRY,2)),CONCATENATE(dms_RPTMonth)&" "&VALUE((LEFT(dms_CRCP_FinalYear_Result,2)&RIGHT(dms_CRCP_FinalYear_Result,2))))
B75: Dollar $ real previous year (PRCP_y5) | C75: =IF(SUM(dms_SingleYear_Model)>0,CONCATENATE(dms_RPTMonth)&" "&VALUE(((LEFT(CRY,2))&RIGHT(CRY,2))-1),CONCATENATE(dms_RPTMonth)&" "&VALUE(((LEFT(dms_CRCP_FirstYear_Result,2)&RIGHT(dms_CRCP_FirstYear_Result,2))))-1) -> June 2017 | D75: dms_DollarReal_Prev | E75: =IF(SUM(dms_SingleYear_Model)>0,CONCATENATE(dms_RPTMonth)&" "&VALUE(((LEFT(CRY,2))&RIGHT(CRY,2))-1),CONCATENATE(dms_RPTMonth)&" "&VALUE(((LEFT(dms_CRCP_FirstYear_Result,2)&RIGHT(dms_CRCP_FirstYear_Result,2))))-1)
B76: FOR PTRM/ RFMs
B77: Form of control | C77: =INDEX(dms_FormControl_List,MATCH(dms_TradingName,dms_TradingName_List)) -> Revenue cap | D77: dms_FormControl | E77: =INDEX(dms_FormControl_List,MATCH(dms_TradingName,dms_TradingName_List))
B78: FOR EB RINS
B79: Calendar Year for table 3.6 data | C79: =VALUE(dms_RYE)-1 -> 2017 | D79: dms_0306_Year | E79: =VALUE(dms_RYE)-1
B80: FOR ABC RINS THAT SPAN MULTIPLE YEARS
B81: Is this a multi year ABC RIN? | C81: No
B82: Backcast Multiyear EB, CA or ARR? | C82: =IF(dms_MultiYear_ResponseFlag="No",0,1) -> 0 | D82: dms_MultiYear_Flag | E82: This is set from the answer provided above
C83: =IF(dms_MultiYear_Flag=1,"Specify Final Reg Year here eg 2016 or 2015-16","not a Multi Reg Year submission") -> not a Multi Reg Year submission | D83: dms_Specified_FinalYear | E83: The result here is returned to dms_CRCP_FinalYear_Result if response to Q in C73 is "yes" and dms_MultiYear_Flag is set to 1
B84: This block works out the various RYE's for ALL RIN types and MODELS
B85: Single Year Model T/F | C85: =IF(dms_Model="EB",1,0) -> 1 | D85: dms_EB
C86: =IF(dms_Model="CA",1,0) -> 0 | D86: dms_CA | E86: =dms_SingleYear_Model
C87: =IF(dms_Model="ARR",1,0) -> 0 | D87: dms_ARR
B88: Single Year Final Year Reference | C88: CRY | D88: dms_SingleYear_FinalYear_Ref | E88: This is the reference for EB, CA & ARR RINs
B89: Single Year Final Year Result | C89: =IFERROR(IF(SUM(dms_SingleYear_Model)<>0,(INDIRECT(dms_SingleYear_FinalYear_Ref)),"not a single year RIN"),"CRY not present") -> 2017-18 | D89: dms_SingleYear_FinalYear_Result | E89: =IFERROR(IF(SUM(dms_SingleYear_Model)<>0,(INDIRECT(dms_SingleYear_FinalYear_Ref)),"not a single year RIN"),"CRY not present")
B90: FRCP length in years | C90: =INDEX(dms_FRCPlength_List,MATCH(dms_TradingName,dms_TradingName_List)) -> 5 | D90: dms_FRCPlength_Num | E90: =INDEX(dms_FRCPlength_List,MATCH(dms_TradingName,dms_TradingName_List))
B91: Multi Year Final Year Reference | C91: =INDEX(dms_FinalYear_List,MATCH(dms_FRCPlength_Num,dms_FRCPlength_Num_List)) -> dms_FRCP_y5 | D91: dms_MultiYear_FinalYear_Ref | E91: =INDEX(dms_FinalYear_List,MATCH(dms_FRCPlength_Num,dms_FRCPlength_Num_List))
B92: Multi Year Final Year Result | C92: =IF(dms_MultiYear_Flag=0,INDIRECT(dms_MultiYear_FinalYear_Ref),dms_Specified_FinalYear) -> 2024-25 | D92: dms_MultiYear_FinalYear_Result | E92: =IF(dms_MultiYear_Flag=0,INDIRECT(dms_MultiYear_FinalYear_Ref),dms_Specified_FinalYear) | I92: Formula errors OK
B93: CRCP length in years | C93: =INDEX(dms_CRCPlength_List,MATCH(dms_TradingName,dms_TradingName_List)) -> 5 | D93: dms_CRCPlength_Num | E93: =INDEX(dms_CRCPlength_List,MATCH(dms_TradingName,dms_TradingName_List))
B94: CRCP Final Year Reference | C94: =INDEX(dms_CFinalYear_List,MATCH(dms_CRCPlength_Num,dms_CRCPlength_Num_List)) -> CRCP_y5 | D94: dms_CRCP_FinalYear_Ref | E94: =INDEX(dms_CFinalYear_List,MATCH(dms_CRCPlength_Num,dms_CRCPlength_Num_List))
B95: CRCP First Year Result | C95: =INDEX(dms_CRCP_years,MATCH(dms_CRCPlength_Num,dms_CRCP_index)) -> 2015-16 | D95: dms_CRCP_FirstYear_Result | E95: =INDEX(dms_CRCP_years,MATCH(dms_CRCPlength_Num,dms_CRCP_index))
B96: CRCP Final Year Result | C96: =IF(dms_MultiYear_Flag=0,(IF(SUM(dms_SingleYear_Model)>0,CRY,dms_CRCP_yZ)),dms_Specified_FinalYear) -> 2017-18 | D96: dms_CRCP_FinalYear_Result | E96: =IF(dms_MultiYear_Flag=0,(IF(SUM(dms_SingleYear_Model)>0,CRY,dms_CRCP_yZ)),dms_Specified_FinalYear)
B97: FOR CATEGORY ANALYSIS FILES
B98: How many rows in tables 6.3 sustained interruptions? | C98: =IF(dms_Model<>"CA","not a CA","Is a CA") -> not a CA | D98: dms_060301_MaxRows only returns a valid value when cover sheet is attached to a CA file
B99: Table 6.3.1 - last row reference | C99: =IFERROR(IF(dms_Model="CA", LOOKUP(2,1/(dms_060301_Avg_Duration_Sustained_Int_Values<>""), (ROW(dms_060301_Avg_Duration_Sustained_Int_Values))), "not a CA"),"no data in 6.3 or 6.3 not present") -> not a CA | D99: dms_060301_LastRow | E99: =IFERROR(IF(dms_Model="CA",LOOKUP(2,1/(dms_060301_Avg_Duration_Sustained_Int_Values<>""),(ROW(dms_060301_Avg_Duration_Sustained_Int_Values))),"not a CA"),"6.3 not present")
B100: Table 6.3.1 - max number rows | C100: =IFERROR(IF(dms_Model="CA",(dms_060301_LastRow-15),"not a CA"),"no data in 6.3 or 6.3 not present") -> not a CA | D100: dms_060301_MaxRows | E100: =IFERROR(IF(dms_Model="CA",(dms_060301_LastRow-15),"not a CA"),"6.3 not present")
B101: Table 6.6.3 - Public lighting repair - no. business days | C101: =INDEX(dms_663_List,MATCH(dms_TradingName,dms_TradingName_List)) -> 5 | D101: dms_663 | E101: =INDEX(dms_663_List,MATCH(dms_TradingName,dms_TradingName_List))
B102: FOR ARR or RESET RINS
B103: How many rows in tables 6.1 or 6.7? (leap year?) | C103: insert dms_LeapYear NR if required | D103: dms_LeapYear is used to determine dms_060701_Max_Rows BUT it is only found on worksheet 6.1 or 6.7 and the date value in the cell is used to determine whether it is a leap year
B104: Is dms_LeapYear named range present? | C104: =IFERROR(IF(dms_LeapYear,"yes"),"no") -> no
B105: Table 6.7.1 - includes a leap year? | C105: =IFERROR(IF(MONTH(DATE(YEAR(dms_LeapYear),2,29))=2,"is a leap year","not a leap year"), "dms_LeapYear not present") -> dms_LeapYear not present | D105: dms_LeapYear_Result | E105: =IFERROR(IF(MONTH(DATE(YEAR(dms_LeapYear),2,29))=2,"is a leap year","not a leap year"),"dms_LeapYear not present")
B106: Table 6.7.1 - Last row (leap year/ non leap year) | C106: =IFERROR(IF(dms_Model="ARR", IF(dms_LeapYear_Result="is a leap year",366,365), (IF(dms_Model="Reset", (IF(dms_LeapYear_Result="is a leap year",1827,1826)), "not a relevant RIN type"))), "dms_LeapYear in either 6.1 or 6.7 not present") -> not a relevant RIN type | D106: dms_060701_MaxRows | E106: =IFERROR(IF(dms_Model="ARR",IF(dms_LeapYear_Result="is a leap year",366,365),(IF(dms_Model="Reset",(IF(dms_LeapYear_Result="is a leap year",1827,1826)),"not a relevant RIN type"))),"dms_LeapYear in either 6.1 or 6.7 not present")
B107: How many columns in 6.7? (4 or 5 feeder categories) | C107: =IF(dms_FifthFeeder_flag_NSP="NO","This NSP has only 4 feeder categories","This NSP has 5 feeder categories") -> This NSP has only 4 feeder categories
B108: Table 6.7.1 - Last column (# of feeder categories > 4) | C108: =IF(dms_FifthFeeder_flag_NSP="NO",10,12) -> 10 | D108: dms_060701_MaxCols | E108: =IF(dms_FifthFeeder_flag_NSP="NO",8,10)
B109: Table 6.7.1 - Number of offset rows | C109: =IF(dms_Model="ARR",15,9) -> 9 | D109: dms_060701_OffsetRows | E109: =IF(dms_Model="ARR",15,9)
B110: Start date for telephone answering in 6.1 or 6.7? | E110: Using 060701 as naming standard not 060101
B111: Table 6.1.1 and 6.7.1 - Start Date as Text | C111: =IF(SUM(dms_SingleYear_Model)>0,(CONCATENATE(IF(LEN(CRY)=4,"1-Jan-","1-Jul-"),LEFT(CRY,4))),(CONCATENATE(IF(LEN(CRCP_y4)=4,"1-Jan-","1-Jul-"),LEFT(CRCP_y4,4)))) -> 1-Jul-2017 | D111: dms_060701_StartDateTxt | E111: =IF(SUM(dms_SingleYear_Model)>1,(CONCATENATE(IF(LEN(CRY)=4,"1-Jan-","1-Jul-"),LEFT(CRY,4))),(CONCATENATE(IF(LEN(CRCP_y4)=4,"1-Jan-","1-Jul-"),LEFT(CRCP_y4,4))))
B112: Table 6.1.1 and 6.7.1 - Start Date as Date Value | C112: =DATEVALUE(dms_060701_StartDateTxt) -> 42917 | D112: dms_060701_StartDateVal | E112: =DATEVALUE(dms_060701_StartDateTxt)
B113: FOR ARRs
B114: How many rows in table 6.8? | C114: insert dms_060801_StartCell NR if required | D114: dms_060801_StartCell is only found on worksheet 6.8 and is used to determine the starting date for the date range
B115: Table 6.8 - Number of offset rows | C115: =IFERROR(IF(dms_Model="ARR",(ROW(dms_060801_StartCell)-1),"not an ARR"),"6.8 not present") -> not an ARR | D115: dms_0608_OffsetRows | E115: =IFERROR(IF(dms_Model="ARR",(ROW(dms_060801_StartCell)-1),"not an ARR"),"6.8 not present")
B116: Table 6.8 - Last row | C116: =IFERROR(IF(dms_060801_StartCell<>"",IF(dms_Model="ARR",(LOOKUP(2,1/(dms_060801_01_Values<>""),(ROW(dms_060801_01_Values)))),"not an ARR"),0),"6.8 not present") -> 6.8 not present | D116: dms_0608_LastRow | E116: =IFERROR(IF(dms_060801_StartCell<>"",IF(dms_Model="ARR",(LOOKUP(2,1/(dms_060801_01_Values<>""),(ROW(dms_060801_01_Values)))),"not an ARR"),0),"6.8 not present")
B117: Table 6.8 - MaxRows | C117: =IFERROR(IF(dms_Model="ARR",(MAX(0,dms_0608_LastRow-dms_0608_OffsetRows)),"not an ARR"),"6.8 not present") -> not an ARR | D117: dms_060801_MaxRows | E117: =IFERROR(IF(dms_Model="ARR",(MAX(0,dms_0608_LastRow-dms_0608_OffsetRows)),"not an ARR"),"6.8 not present")
B118: FOR TNSP RESET RINS
B119: Table 7.9.4 only appears in TNSPs Reset RIN
B120: Table 7.9.4 - first year | C120: =LEFT(PRCP_y3,4) -> 2012 | D120: dms_070904_Start_Year | E120: =LEFT(PRCP_y3,4)
B121: FOR SUBSET FILES
B122: Is this Submission File a Subset File | C122: NO | D122: dms_Partial
B123: MISC
B124: Distribution Determination Reference | C124: =INDEX(dms_DeterminationRef_List,MATCH(dms_TradingName,dms_TradingName_List)) -> 2014-19 Distribution Determination | D124: dms_DeterminationRef
B125: CBD Feeder for this business | C125: =INDEX(dms_CBD_flag,MATCH(dms_TradingName,dms_TradingName_List)) -> NO | D125: dms_CBD_flag_NSP
B126: Urban Feeder for this business | C126: =INDEX(dms_Urban_flag,MATCH(dms_TradingName,dms_TradingName_List)) -> YES | D126: dms_Urban_flag_NSP
B127: Short rural Feeder for this business | C127: =INDEX(dms_ShortRural_flag,MATCH(dms_TradingName,dms_TradingName_List)) -> YES | D127: dms_ShortRural_flag_NSP
B128: Long rural Feeder for this business | C128: =INDEX(dms_LongRural_flag,MATCH(dms_TradingName,dms_TradingName_List)) -> YES | D128: dms_LongRural_flag_NSP
B129: Fifth Feeder Category (eg. TasNetworks (D)) | C129: =INDEX(dms_FeederType_5_flag,MATCH(dms_TradingName,dms_TradingName_List)) -> NO | D129: dms_FifthFeeder_flag_NSP | E129: =INDEX(dms_FeederType_5_flag,MATCH(dms_TradingName,dms_TradingName_List))
B131: DISCARD FILES
B132: discard this record? | C132: NO | D132: dms_DISCARD | E132: If record is to be discarded from DB set this flag to YES
B134: USES NAMED RANGES FLAG | C134: yes | D134: dms_Defined_Names_Used
B136: REGULATORY YEARS FOR MULTI RYE SUBMISSIONS
B137: Multiple RYE flag | C137: NO | D137: dms_Multi_RYE_flag
C138: Manually specify RYE | D138: Named ranges to apply
C139: 2013 | D139: dms_RYE_01
C140: 2014 | D140: dms_RYE_02
C141: 2015 | D141: dms_RYE_03
C142: 2016 | D142: dms_RYE_04
C143: 2017 | D143: dms_RYE_05

Sheet 3.1 Revenue
B1: REGULATORY REPORTING STATEMENT
B2: =dms_TradingName -> Endeavour Energy
B3: =CONCATENATE("Benchmarking RIN response ",CRY) -> Benchmarking RIN response 2017-18
B4: 3.1 REVENUE
B6: There are THREE tables on this worksheet. Each table has been grouped for ease of navigation. See the Instructions sheet on how to group or ungroup tables.
B8: 3.1.1 - REVENUE GROUPING BY CHARGEABLE QUANTITY
C9: Standard control services | D9: Alternative control services
C10: REVENUE ($0's)
C11: =CRY -> 2017-18 | D11: =CRY -> 2017-18
A12: DREV0101 | B12: Revenue from Fixed Customer Charges | C12: 176912797.4 | D12: 0
A13: DREV0102 | B13: Revenue from Energy Delivery charges where time of use is not a determinant | C13: 469440328.9 | D13: 0
A14: DREV0103 | B14: Revenue from On–Peak Energy Delivery charges | C14: 28643332.42 | D14: 0
A15: DREV0104 | B15: Revenue from Shoulder period Energy Delivery Charges | C15: 14676912.73 | D15: 0
A16: DREV0105 | B16: Revenue from Off–Peak Energy Delivery charges | C16: 6507232.339 | D16: 0
A17: DREV0106 | B17: Revenue from controlled load customer charges | C17: 5102125.769 | D17: 0
A18: DREV0107 | B18: Revenue from unmetered supplies | C18: 8947008.968 | D18: 0
A19: DREV0108 | B19: Revenue from Contracted Maximum Demand charges | C19: 0 | D19: 0
A20: DREV0109 | B20: Revenue from Measured Maximum Demand charges | C20: 131044168.4 | D20: 0
A21: DREV0110 | B21: Revenue from metering charges | C21: 0 | D21: 17381720.7
A22: DREV0111 | B22: Revenue from connection charges | C22: 0 | D22: 0
A23: DREV0112 | B23: Revenue from public lighting charges | C23: 0 | D23: 22790358.33
A24: DREV0113 | B24: Revenue from other Sources | C24: 0 | D24: 35278508.67
A25: DREV01 | B25: Total revenue by chargeable quantity | C25: =SUM(C12:C24) -> 841273907.1 | D25: =SUM(D12:D24) -> 75450587.7
B28: 3.1.2 - REVENUE GROUPING BY CUSTOMER TYPE OR CLASS
C29: Standard control services | D29: Alternative control services
C30: REVENUE ($0's)
C31: =CRY -> 2017-18 | D31: =CRY -> 2017-18
A32: DREV0201 | B32: Revenue from residential Customers | C32: 480137842.7 | D32: 0
A33: DREV0202 | B33: Revenue from Non residential customers not on demand tariffs | C33: 137433784.5 | D33: 0
A34: DREV0203 | B34: Revenue from Non-residential low voltage demand tariff customers | C34: 152069733.4 | D34: 0
A35: DREV0204 | B35: Revenue from Non-residential high voltage demand tariff customers | C35: 62685537.47 | D35: 0
A36: DREV0205 | B36: Revenue from unmetered supplies | C36: 8947008.968 | D36: 0
A37: DREV0206 | B37: Revenue from Other Customers | C37: 0 | D37: 75450587.7
A38: DREV02 | B38: Total revenue by customer class | C38: =SUM(C32:C37) -> 841273907.1 | D38: =SUM(D32:D37) -> 75450587.7
B40: 3.1.3 - REVENUE (penalties) ALLOWED (deducted) THROUGH INCENTIVE SCHEMES
C41: Standard control services | D41: Alternative control services
C42: REVENUE ($0's)
C43: =CRY -> 2017-18 | D43: =CRY -> 2017-18
A44: DREV0301 | B44: EBSS | C44: -24591637.31 | D44: 0
A45: DREV0302 | B45: STPIS | C45: 0 | D45: 0
A46: DREV0303 | B46: F-Factor | C46: 0 | D46: 0
A47: DREV0304 | B47: S-Factor True up | C47: 0 | D47: 0
A48: DREV0305 | B48: Other | C48: 0 | D48: 0
A49: DREV03 | B49: Total revenue of incentive schemes | C49: =SUM(C44:C48) -> -24591637.31 | D49: =SUM(D44:D48) -> 0

Sheet 3.2 Operating expenditure
B1: REGULATORY REPORTING STATEMENT
B2: =dms_TradingName -> Endeavour Energy
B3: =CONCATENATE("Benchmarking RIN response ",CRY) -> Benchmarking RIN response 2017-18
B4: 3.2 OPERATING EXPENDITURE
B6: There are THREE tables on this worksheet. Each table has been grouped for ease of navigation. See the Instructions sheet on how to group or ungroup tables.
B8: Instructions
B9: =CONCATENATE("In table 3.2.1, please list each opex category reported in response to ",dms_TradingName, "'s annual reporting RIN and report opex for each category.") -> In table 3.2.1, please list each opex category reported in response to Endeavour Energy's annual reporting RIN and report opex for each category.
B12: 3.2.1 - OPEX CATEGORIES
B13: CURRENT OPEX CATEGORIES AND COST ALLOCATIONS
C14: Standard control services | D14: Alternative control services
C15: EXPENDITURE ($0's)
C16: =CRY -> 2017-18 | D16: =CRY -> 2017-18
A17: DOPEX0101 | B17: Vegetation management | C17: 41759744.9 | D17: 0
A18: DOPEX0102 | B18: Maintenance | C18: 49215839.71 | D18: 0
A19: DOPEX0103 | B19: Emergency response | C19: 15801119.45 | D19: 0
A20: DOPEX0104 | B20: Non-network | C20: 62240370.44 | D20: 0
A21: DOPEX0105 | B21: network overheads | C21: 57147989.89 | D21: 0
A22: DOPEX0106 | B22: corporate overheads | C22: 93398204.23 | D22: 0
A23: DOPEX0107 | B23: Balancing Item | C23: -62240370.44 | D23: 0
A24: DOPEX0108 | B24: Metering | C24: 0 | D24: 17572224.32
A25: DOPEX0109 | B25: Public Lighting | C25: 0 | D25: 14335117.78
A26: DOPEX0110 | B26: Ancillary network services | C26: 0 | D26: 31200995.47
A27: DOPEX0111
A28: DOPEX0112
A29: DOPEX0113
A30: DOPEX0114
A31: DOPEX0115
A32: DOPEX0116
A33: DOPEX0117
A34: DOPEX0118
A35: DOPEX0119
A36: DOPEX0120
A37: DOPEX0121
A38: DOPEX0122
A39: DOPEX0123
A40: DOPEX0124
A41: DOPEX0125
A42: DOPEX0126
A43: DOPEX0127
A44: DOPEX0128
A45: DOPEX0129
A46: DOPEX0130
A47: DOPEX0131
A48: DOPEX0132
A49: DOPEX0133
A50: DOPEX0134
A51: DOPEX0135
A52: DOPEX0136
A53: DOPEX0137
A54: DOPEX0138
A55: DOPEX0139
A56: DOPEX0140
A57: DOPEX0141
A58: DOPEX0142
A59: DOPEX01 | B59: Total opex | C59: =SUM(C17:C58) -> 257322898.2 | D59: =SUM(D17:D58) -> 63108337.57
B63: 3.2.2 - OPEX CONSISTENCY
B64: CURRENT COST ALLOCATION APPROACH
C65: Standard control services | D65: Alternative control services
C66: EXPENDITURE ($0's)
C67: =CRY -> 2017-18 | D67: =CRY -> 2017-18
A68: DOPEX0201 | B68: Opex for network services | C68: 257322898.2 | D68: 0
A69: DOPEX0202 | B69: Opex for metering | C69: 0 | D69: 17572224.32
A70: DOPEX0203 | B70: Opex for connection services | C70: 0 | D70: 31200995.47
A71: DOPEX0204 | B71: Opex for public lighting | C71: 0 | D71: 14335117.78
A72: DOPEX0205 | B72: Opex for amounts payable for easement levy or similar direct charges on DNSP | C72: 0 | D72: 0
A73: DOPEX0206 | B73: Opex for transmission connection point planning | C73: 0 | D73: 0
B77: 3.2.4 - OPEX FOR HIGH VOLTAGE CUSTOMERS
C78: End user costs (not standard control services)
A79: DOPEX0401 | B79: Opex for high voltage customers | C79: 257.129793

Sheet 3.2.3 Provisions
B1: REGULATORY REPORTING STATEMENT
B2: =dms_TradingName -> Endeavour Energy
B3: =CONCATENATE("Benchmarking RIN response ",CRY) -> Benchmarking RIN response 2017-18
B4: 3.2 OPERATING EXPENDITURE
B6: The is ONE table on this worksheet. Each Provision has been grouped for ease of navigation. See the Instructions sheet on how to group and ungroup tables.
B8: Instructions
B9: =CONCATENATE("In table 3.2.3, please list each opex category reported in response to ",dms_TradingName, "'s annual reporting RIN and report opex for each category.") -> In table 3.2.3, please list each opex category reported in response to Endeavour Energy's annual reporting RIN and report opex for each category.
B11: 3.2.3 - PROVISIONS
C12: VALUE ($0's)
C13: =CRY -> 2017-18
A14: DOPEX03A | B14: Employee Entitlements
B15: Provisions are required to comply with Accounting Standards. A provision is recognised if, as a result of a past event, the Corporation has a present legal or constructive obligation that can be estimated reliably, and it is probable that an outflow of economic benefits will be required to settle the obligation. The Employee Benefits provision relates to amounts accruing to employees up to reporting date in respect of employee benefits including annual leave, maturing allowance, pre 93 sick leave and long service leave. Amounts provided for in relation to maturing allowance, pre 93 sick leave and long service leave have been based on an actuarial assessment and associated formulae provided for intervening periods between assessments. All other employee benefit amounts have been calculated at nominal amounts based on expected settlement rates.
A16: DOPEX0301A | B16: Opening balance (the carrying amount at the beginning of the period) | C16: 135777615.5
B17: Additional provisions made in the period, including increases to existing provisions
A18: DOPEX0302A | B18: Opex component | C18: 11201835.79
A19: DOPEX0303A | B19: Capex component | C19: 4971230.478
A20: DOPEX0304A | B20: Other component | C20: 0
B21: Amounts used (that is, incurred and charged against the provision) during the period
A22: DOPEX0305A | B22: Opex component | C22: -12361585.84
A23: DOPEX0306A | B23: Capex component | C23: -9549765.083
A24: DOPEX0307A | B24: Other component | C24: 0
B25: Unused amounts reversed during the period
A26: DOPEX0308A | B26: Opex component | C26: 1003497.428
A27: DOPEX0309A | B27: Capex component | C27: 851897.694
A28: DOPEX0310A | B28: Other component | C28: 0
B29: The increase during the period in the discounted amount arising from the passage of time and the effect of any change in the discount rate
A30: DOPEX0311A | B30: Opex component | C30: -1178359.354
A31: DOPEX0312A | B31: Capex component | C31: -1000342.989
A32: DOPEX0313A | B32: Other component | C32: 0
A33: DOPEX0314A | B33: Closing balance (carrying amount at the end of the period) | C33: 129716023.6
A34: DOPEX03B | B34: Self Insurance (WC)
B35: Provisions are required to comply with Accounting Standards. A provision is recognised if, as a result of a past event, the Corporation has a present legal or constructive obligation that can be estimated reliably, and it is probable that an outflow of economic benefits will be required to settle the obligation. The Self Insurance provision relates to workers compensation and has been based on actuarial assessment outcomes.
A36: DOPEX0301B | B36: Opening balance (the carrying amount at the beginning of the period) | C36: 16340888.38
B37: Additional provisions made in the period, including increases to existing provisions
A38: DOPEX0302B | B38: Opex component | C38: 468881.197
A39: DOPEX0303B | B39: Capex component | C39: 398046.6709
A40: DOPEX0304B | B40: Other component | C40: 0
B41: Amounts used (that is, incurred and charged against the provision) during the period
A42: DOPEX0305B | B42: Opex component | C42: -712245.328
A43: DOPEX0306B | B43: Capex component | C43: -604645.4485
A44: DOPEX0307B | B44: Other component | C44: 0
B45: Unused amounts reversed during the period
A46: DOPEX0308B | B46: Opex component | C46: -570926.3162
A47: DOPEX0309B | B47: Capex component | C47: -484675.6938
A48: DOPEX0310B | B48: Other component | C48: 0
B49: The increase during the period in the discounted amount arising from the passage of time and the effect of any change in the discount rate
A50: DOPEX0311B | B50: Opex component | C50: 0
A51: DOPEX0312B | B51: Capex component | C51: 0
A52: DOPEX0313B | B52: Other component | C52: 0
A53: DOPEX0314B | B53: Closing balance (carrying amount at the end of the period) | C53: 14835323.46
A54: DOPEX03C | B54: Defined Benefits Superannuation
B55: Provisions are required to comply with Accounting Standards. A provision is recognised if, as a result of a past event, the Corporation has a present legal or constructive obligation that can be estimated reliably, and it is probable that an outflow of economic benefits will be required to settle the obligation. The Defined Benefits Superannuation liability provision has been based on an EISS actuarial assessment.
A56: DOPEX0301C | B56: Opening balance (the carrying amount at the beginning of the period) | C56: 12227247.19
B57: Additional provisions made in the period, including increases to existing provisions
A58: DOPEX0302C | B58: Opex component | C58: 0
A59: DOPEX0303C | B59: Capex component | C59: 0
A60: DOPEX0304C | B60: Other component | C60: 0
B61: Amounts used (that is, incurred and charged against the provision) during the period
A62: DOPEX0305C | B62: Opex component | C62: 0
A63: DOPEX0306C | B63: Capex component | C63: 0
A64: DOPEX0307C | B64: Other component | C64: 0
B65: Unused amounts reversed during the period
A66: DOPEX0308C | B66: Opex component | C66: -150438.2599
A67: DOPEX0309C | B67: Capex component | C67: -127711.3454
A68: DOPEX0310C | B68: Other component | C68: 0
B69: The increase during the period in the discounted amount arising from the passage of time and the effect of any change in the discount rate
A70: DOPEX0311C | B70: Opex component | C70: 0
A71: DOPEX0312C | B71: Capex component | C71: 0
A72: DOPEX0313C | B72: Other component | C72: -2158880.289
A73: DOPEX0314C | B73: Closing balance (carrying amount at the end of the period) | C73: 9790217.299
A74: DOPEX03D | B74: Other
B75: Provisions are required to comply with Accounting Standards. A provision is recognised if, as a result of a past event, the Corporation has a present legal or constructive obligation that can be estimated reliably, and it is probable that an outflow of economic benefits will be required to settle the obligation. Other Provisions have not been detailed due to commercial and legal sensitivity.
A76: DOPEX0301D | B76: Opening balance (the carrying amount at the beginning of the period) | C76: 12734387.81
B77: Additional provisions made in the period, including increases to existing provisions
A78: DOPEX0302D | B78: Opex component | C78: 4051220.027
A79: DOPEX0303D | B79: Capex component | C79: 3439196.656
A80: DOPEX0304D | B80: Other component | C80: 0
B81: Amounts used (that is, incurred and charged against the provision) during the period
A82: DOPEX0305D | B82: Opex component | C82: -4196599.558
A83: DOPEX0306D | B83: Capex component | C83: -2307190.964
A84: DOPEX0307D | B84: Other component | C84: -699273.4226
B85: Unused amounts reversed during the period
A86: DOPEX0308D | B86: Opex component | C86: 0
A87: DOPEX0309D | B87: Capex component | C87: -3775164.041
A88: DOPEX0310D | B88: Other component | C88: 0
B89: The increase during the period in the discounted amount arising from the passage of time and the effect of any change in the discount rate
A90: DOPEX0311D | B90: Opex component | C90: 0
A91: DOPEX0312D | B91: Capex component | C91: 0
A92: DOPEX0313D | B92: Other component | C92: 0
A93: DOPEX0314D | B93: Closing balance (carrying amount at the end of the period) | C93: 9246576.505
A94: DOPEX03E | B94: Dividend
B95: Provisions are required to comply with Accounting Standards. A provision is recognised if, as a result of a past event, the Corporation has a present legal or constructive obligation that can be estimated reliably, and it is probable that an outflow of economic benefits will be required to settle the obligation. The Provision for Dividend represents amounts determined by the Directors and approved by the Shareholding Ministers, in accordance with the requirements of NSW Treasury Policy TPP 14-4 Financial Distribution Policy for Government Businesses. The NSW Treasury Policy is no longer relevant after ompletion on 13 June 2017 and no provision for distribution has been raised as at 30 June 2017.
A96: DOPEX0301E | B96: Opening balance (the carrying amount at the beginning of the period) | C96: 0
B97: Additional provisions made in the period, including increases to existing provisions
A98: DOPEX0302E | B98: Opex component | C98: 0
A99: DOPEX0303E | B99: Capex component | C99: 0
A100: DOPEX0304E | B100: Other component | C100: 0
B101: Amounts used (that is, incurred and charged against the provision) during the period
A102: DOPEX0305E | B102: Opex component | C102: 0
A103: DOPEX0306E | B103: Capex component | C103: 0
A104: DOPEX0307E | B104: Other component | C104: 0
B105: Unused amounts reversed during the period
A106: DOPEX0308E | B106: Opex component | C106: 0
A107: DOPEX0309E | B107: Capex component | C107: 0
A108: DOPEX0310E | B108: Other component | C108: 0
B109: The increase during the period in the discounted amount arising from the passage of time and the effect of any change in the discount rate
A110: DOPEX0311E | B110: Opex component | C110: 0
A111: DOPEX0312E | B111: Capex component | C111: 0
A112: DOPEX0313E | B112: Other component | C112: 0
A113: DOPEX0314E | B113: Closing balance (carrying amount at the end of the period) | C113: 0
A114: DOPEX03F | B114: <Provision name>
B115: <Brief description of provision>
A116: DOPEX0301F | B116: Opening balance (the carrying amount at the beginning of the period)
B117: Additional provisions made in the period, including increases to existing provisions
A118: DOPEX0302F | B118: Opex component
A119: DOPEX0303F | B119: Capex component
A120: DOPEX0304F | B120: Other component
B121: Amounts used (that is, incurred and charged against the provision) during the period
A122: DOPEX0305F | B122: Opex component
A123: DOPEX0306F | B123: Capex component
A124: DOPEX0307F | B124: Other component
B125: Unused amounts reversed during the period
A126: DOPEX0308F | B126: Opex component
A127: DOPEX0309F | B127: Capex component
A128: DOPEX0310F | B128: Other component
B129: The increase during the period in the discounted amount arising from the passage of time and the effect of any change in the discount rate
A130: DOPEX0311F | B130: Opex component
A131: DOPEX0312F | B131: Capex component
A132: DOPEX0313F | B132: Other component
A133: DOPEX0314F | B133: Closing balance (carrying amount at the end of the period)
A134: DOPEX03G | B134: <Provision name>
B135: <Brief description of provision>
A136: DOPEX0301G | B136: Opening balance (the carrying amount at the beginning of the period)
B137: Additional provisions made in the period, including increases to existing provisions
A138: DOPEX0302G | B138: Opex component
A139: DOPEX0303G | B139: Capex component
A140: DOPEX0304G | B140: Other component
B141: Amounts used (that is, incurred and charged against the provision) during the period
A142: DOPEX0305G | B142: Opex component
A143: DOPEX0306G | B143: Capex component
A144: DOPEX0307G | B144: Other component
B145: Unused amounts reversed during the period
A146: DOPEX0308G | B146: Opex component
A147: DOPEX0309G | B147: Capex component
A148: DOPEX0310G | B148: Other component
B149: The increase during the period in the discounted amount arising from the passage of time and the effect of any change in the discount rate
A150: DOPEX0311G | B150: Opex component
A151: DOPEX0312G | B151: Capex component
A152: DOPEX0313G | B152: Other component
A153: DOPEX0314G | B153: Closing balance (carrying amount at the end of the period)
A154: DOPEX03H | B154: <Provision name>
B155: <Brief description of provision>
A156: DOPEX0301H | B156: Opening balance (the carrying amount at the beginning of the period)
B157: Additional provisions made in the period, including increases to existing provisions
A158: DOPEX0302H | B158: Opex component
A159: DOPEX0303H | B159: Capex component
A160: DOPEX0304H | B160: Other component
B161: Amounts used (that is, incurred and charged against the provision) during the period
A162: DOPEX0305H | B162: Opex component
A163: DOPEX0306H | B163: Capex component
A164: DOPEX0307H | B164: Other component
B165: Unused amounts reversed during the period
A166: DOPEX0308H | B166: Opex component
A167: DOPEX0309H | B167: Capex component
A168: DOPEX0310H | B168: Other component
B169: The increase during the period in the discounted amount arising from the passage of time and the effect of any change in the discount rate
A170: DOPEX0311H | B170: Opex component
A171: DOPEX0312H | B171: Capex component
A172: DOPEX0313H | B172: Other component
A173: DOPEX0314H | B173: Closing balance (carrying amount at the end of the period)
A174: DOPEX03I | B174: <Provision name>
B175: <Brief description of provision>
A176: DOPEX0301I | B176: Opening balance (the carrying amount at the beginning of the period)
B177: Additional provisions made in the period, including increases to existing provisions
A178: DOPEX0302I | B178: Opex component
A179: DOPEX0303I | B179: Capex component
A180: DOPEX0304I | B180: Other component
B181: Amounts used (that is, incurred and charged against the provision) during the period
A182: DOPEX0305I | B182: Opex component
A183: DOPEX0306I | B183: Capex component
A184: DOPEX0307I | B184: Other component
B185: Unused amounts reversed during the period
A186: DOPEX0308I | B186: Opex component
A187: DOPEX0309I | B187: Capex component
A188: DOPEX0310I | B188: Other component
B189: The increase during the period in the discounted amount arising from the passage of time and the effect of any change in the discount rate
A190: DOPEX0311I | B190: Opex component
A191: DOPEX0312I | B191: Capex component
A192: DOPEX0313I | B192: Other component
A193: DOPEX0314I | B193: Closing balance (carrying amount at the end of the period)
A194: DOPEX03J | B194: <Provision name>
B195: <Brief description of provision>
A196: DOPEX0301J | B196: Opening balance (the carrying amount at the beginning of the period)
B197: Additional provisions made in the period, including increases to existing provisions
A198: DOPEX0302J | B198: Opex component
A199: DOPEX0303J | B199: Capex component
A200: DOPEX0304J | B200: Other component
B201: Amounts used (that is, incurred and charged against the provision) during the period
A202: DOPEX0305J | B202: Opex component
A203: DOPEX0306J | B203: Capex component
... 170 more rows

Sheet 3.3 Assets (RAB)
B1: REGULATORY REPORTING STATEMENT
B2: =dms_TradingName -> Endeavour Energy
B3: =CONCATENATE("Benchmarking RIN response ",CRY) -> Benchmarking RIN response 2017-18
B4: 3.3 ASSETS
B6: There are FOUR tables on this worksheet. Each table has been grouped (and sub-grouped) for ease of navigation. See the Instructions sheet on how to group or ungroup tables.
B8: 3.3.1 - REGULATORY ASSET BASE VALUES
C9: Network services | D9: Standard control services | E9: Alternative control services
C10: VALUE ($0's)
C11: =CRY -> 2017-18 | D11: =CRY -> 2017-18 | E11: 2017-18
B12: FOR TOTAL ASSET BASE
A13: DRAB0101 | B13: Opening value | C13: 6008555530 | D13: 6008555530 | E13: 31938012.4
A14: DRAB0102 | B14: Inflation addition | C14: 117078325.6 | D14: 117078325.6 | E14: 622359.2512
A15: DRAB0103 | B15: Straight line depreciation | C15: -242815196.3 | D15: -242815196.3 | E15: -3356024.782
A16: DRAB0105 | B16: Actual additions (recognised in RAB) | C16: 361174888 | D16: 361174888 | E16: 1363867.868
A17: DRAB0106 | B17: Disposals | C17: -3828195.441 | D17: -3828195.441 | E17: -24018.33143
A18: DRAB0107 | B18: Closing value | C18: =SUM(C13:C17) -> 6240165352 | D18: =SUM(D13:D17) -> 6240165352 | E18: 30544196.4
B21: 3.3.2 - ASSET VALUE ROLL FORWARD
C22: Network services | D22: Standard control services | E22: Alternative control services
C23: VALUE ($0's)
C24: =CRY -> 2017-18 | D24: =CRY -> 2017-18 | E24: 2017-18
B25: For overhead network assets less than 33kV:
A26: DRAB0201 | B26: Opening value | C26: 878230568.4 | D26: 878230568.4 | E26: 0
A27: DRAB0202 | B27: Inflation addition | C27: 17112559.57 | D27: 17112559.57 | E27: 0
A28: DRAB0203 | B28: Straight line depreciation | C28: -28731863.01 | D28: -28731863.01 | E28: 0
A29: DRAB0205 | B29: Actual additions (recognised in RAB) | C29: 95498161.79 | D29: 95498161.79 | E29: 0
A30: DRAB0206 | B30: Disposals | C30: 0 | D30: 0 | E30: 0
A31: DRAB0207 | B31: Closing value | C31: =SUM(C26:C30) -> 962109426.8 | D31: =SUM(D26:D30) -> 962109426.8 | E31: =SUM(E26:E30) -> 0
B32: For underground network assets less than 33kV:
A33: DRAB0301 | B33: Opening value | C33: 1439002262 | D33: 1439002262 | E33: 0
A34: DRAB0302 | B34: Inflation addition | C34: 28039347.3 | D34: 28039347.3 | E34: 0
A35: DRAB0303 | B35: Straight line depreciation | C35: -48734028.42 | D35: -48734028.42 | E35: 0
A36: DRAB0305 | B36: Actual additions (recognised in RAB) | C36: 35610099.65 | D36: 35610099.65 | E36: 0
A37: DRAB0306 | B37: Disposals | C37: 0 | D37: 0 | E37: 0
A38: DRAB0307 | B38: Closing value | C38: =SUM(C33:C37) -> 1453917680 | D38: =SUM(D33:D37) -> 1453917680 | E38: =SUM(E33:E37) -> 0
B39: For distribution substations and transformers:
A40: DRAB0401 | B40: Opening value | C40: 537784925.2 | D40: 537784925.2 | E40: 0
A41: DRAB0402 | B41: Inflation addition | C41: 10478884.36 | D41: 10478884.36 | E41: 0
A42: DRAB0403 | B42: Straight line depreciation | C42: -29140097.55 | D42: -29140097.55 | E42: 0
A43: DRAB0405 | B43: Actual additions (recognised in RAB) | C43: 36446718.15 | D43: 36446718.15 | E43: 0
A44: DRAB0406 | B44: Disposals | C44: -465491.501 | D44: -465491.501 | E44: 0
A45: DRAB0407 | B45: Closing value | C45: =SUM(C40:C44) -> 555104938.7 | D45: =SUM(D40:D44) -> 555104938.7 | E45: =SUM(E40:E44) -> 0
B46: For overhead network assets 33kV and above:
A47: DRAB0501 | B47: Opening value | C47: 314276491.4 | D47: 314276491.4 | E47: 0
A48: DRAB0502 | B48: Inflation addition | C48: 6123762.223 | D48: 6123762.223 | E48: 0
A49: DRAB0503 | B49: Straight line depreciation | C49: -19223830.36 | D49: -19223830.36 | E49: 0
A50: DRAB0505 | B50: Actual additions (recognised in RAB) | C50: 20288486.33 | D50: 20288486.33 | E50: 0
A51: DRAB0506 | B51: Disposals | C51: 0 | D51: 0 | E51: 0
A52: DRAB0507 | B52: Closing value | C52: =SUM(C47:C51) -> 321464909.6 | D52: =SUM(D47:D51) -> 321464909.6 | E52: =SUM(E47:E51) -> 0
B53: For underground network assets 33kV and above:
A54: DRAB0601 | B54: Opening value | C54: 122931069 | D54: 122931069 | E54: 0
A55: DRAB0602 | B55: Inflation addition | C55: 2395345.045 | D55: 2395345.045 | E55: 0
A56: DRAB0603 | B56: Straight line depreciation | C56: -11615206.99 | D56: -11615206.99 | E56: 0
A57: DRAB0605 | B57: Actual additions (recognised in RAB) | C57: 3486402.109 | D57: 3486402.109 | E57: 0
A58: DRAB0606 | B58: Disposals | C58: 0 | D58: 0 | E58: 0
A59: DRAB0607 | B59: Closing value | C59: =SUM(C54:C58) -> 117197609.1 | D59: =SUM(D54:D58) -> 117197609.1 | E59: =SUM(E54:E58) -> 0
B60: Zone substations and transformers
A61: DRAB0701 | B61: Opening value | C61: 2332617057 | D61: 2332617057 | E61: 0
A62: DRAB0702 | B62: Inflation addition | C62: 45451672.69 | D62: 45451672.69 | E62: 0
A63: DRAB0703 | B63: Straight line depreciation | C63: -61878657.26 | D63: -61878657.26 | E63: 0
A64: DRAB0705 | B64: Actual additions (recognised in RAB) | C64: 96586624.44 | D64: 96586624.44 | E64: 0
A65: DRAB0706 | B65: Disposals | C65: -3186558.029 | D65: -3186558.029 | E65: 0
A66: DRAB0707 | B66: Closing value | C66: =SUM(C61:C65) -> 2409590139 | D66: =SUM(D61:D65) -> 2409590139 | E66: =SUM(E61:E65) -> 0
B67: For easements:
A68: DRAB0801 | B68: Opening value | C68: 15982431.4 | D68: 15982431.4 | E68: 0
A69: DRAB0802 | B69: Inflation addition | C69: 311421.9877 | D69: 311421.9877 | E69: 0
A70: DRAB0805 | B70: Actual additions (recognised in RAB) | C70: 94715.34571 | D70: 94715.34571 | E70: 0
A71: DRAB0806 | B71: Disposals | C71: 0 | D71: 0 | E71: 0
A72: DRAB0807 | B72: Closing value | C72: =SUM(C68:C71) -> 16388568.73 | D72: =SUM(D68:D71) -> 16388568.73 | E72: =SUM(E68:E71) -> 0
B73: For meters:
A74: DRAB0901 | B74: Opening value | C74: 24780255.23 | D74: 24780255.23 | E74: 30338229.72
A75: DRAB0902 | B75: Inflation addition | C75: 482849.9586 | D75: 482849.9586 | E75: 591185.1275
A76: DRAB0903 | B76: Straight line depreciation | C76: -2814229.466 | D76: -2814229.466 | E76: -3187920.708
A77: DRAB0905 | B77: Actual additions (recognised in RAB) | C77: 787311.988 | D77: 787311.988 | E77: 1363867.868
A78: DRAB0906 | B78: Disposals | C78: 0 | D78: 0 | E78: 0
A79: DRAB0907 | B79: Closing value | C79: =SUM(C74:C78) -> 23236187.71 | D79: =SUM(D74:D78) -> 23236187.71 | E79: =SUM(E74:E78) -> 29105362.01
B80: For “other” asset items with long lives:
A81: DRAB1001 | B81: Opening value | C81: 208262767.6 | D81: 208262767.6 | E81: 405108.35
A82: DRAB1002 | B82: Inflation addition | C82: 4058056.215 | D82: 4058056.215 | E82: 7894.133368
A83: DRAB1003 | B83: Straight line depreciation | C83: -12412202.6 | D83: -12412202.6 | E83: -42568.51207
A84: DRAB1005 | B84: Actual additions (recognised in RAB) | C84: 6566991.713 | D84: 6566991.713 | E84: 0
A85: DRAB1006 | B85: Disposals | C85: 0 | D85: 0 | E85: 0
A86: DRAB1007 | B86: Closing value | C86: =SUM(C81:C85) -> 206475613 | D86: =SUM(D81:D85) -> 206475613 | E86: =SUM(E81:E85) -> 370433.9713
B87: For “other” asset items with short lives:
A88: DRAB1101 | B88: Opening value | C88: 134687702.6 | D88: 134687702.6 | E88: 1194674.226
A89: DRAB1102 | B89: Inflation addition | C89: 2624426.223 | D89: 2624426.223 | E89: 23279.98836
A90: DRAB1103 | B90: Straight line depreciation | C90: -28265080.69 | D90: -28265080.69 | E90: -125535.5616
A91: DRAB1105 | B91: Actual additions (recognised in RAB) | C91: 65809376.54 | D91: 65809376.54 | E91: 0
A92: DRAB1106 | B92: Disposals | C92: -176145.9117 | D92: -176145.9117 | E92: -24018.33143
A93: DRAB1107 | B93: Closing value | C93: =SUM(C88:C92) -> 174680278.8 | D93: =SUM(D88:D92) -> 174680278.8 | E93: =SUM(E88:E92) -> 1068400.322
B97: 3.3.3 - TOTAL DISAGGREGATED RAB ASSET VALUES
C98: Network services | D98: Standard control services | E98: Alternative control services
C99: VALUE ($0's)
C100: =CRY -> 2017-18 | D100: =CRY -> 2017-18 | E100: 2017-18
A101: DRAB1201 | B101: Overhead network assets less than 33kV (wires and poles) | C101: 920169997.6 | D101: 920169997.6 | E101: 0
A102: DRAB1202 | B102: Underground network assets less than 33kV (cables) | C102: 1446459971 | D102: 1446459971 | E102: 0
A103: DRAB1203 | B103: Distribution substations including transformers | C103: 546444931.9 | D103: 546444931.9 | E103: 0
A104: DRAB1204 | B104: Overhead network assets 33kV and above (wires and towers / poles etc) | C104: 317870700.5 | D104: 317870700.5 | E104: 0
A105: DRAB1205 | B105: Underground network assets 33kV and above(cables, ducts etc) | C105: 120064339 | D105: 120064339 | E105: 0
A106: DRAB1206 | B106: Zone substations and transformers | C106: 2371103598 | D106: 2371103598 | E106: 0
A107: DRAB1207 | B107: Easements | C107: 16185500.06 | D107: 16185500.06 | E107: 0
A108: DRAB1208 | B108: Meters | C108: 24008221.47 | D108: 24008221.47 | E108: 29721795.86
A109: DRAB1209 | B109: "Other" assets with long lives | C109: 207369190.3 | D109: 207369190.3 | E109: 387771.1607
A110: DRAB1210 | B110: "Other" assets with short lives | C110: 154683990.7 | D110: 154683990.7 | E110: 1131537.274
A111: DRAB13 | B111: Value of Capital Contributions or Contributed Assets (included in the above) | C111: 0 | D111: 0 | E111: 0
B114: 3.3.4 - ASSET LIVES
C115: Network services | D115: Standard control services | E115: Alternative control services
C116: Service Life (Years)
C117: =CRY -> 2017-18 | D117: =CRY -> 2017-18 | E117: 2017-18
B118: ESTIMATED SERVICE LIFE OF NEW ASSETS
A119: DRAB1401 | B119: Overhead network assets less than 33kV (wires and poles) | C119: 53.12983905 | D119: 53.12983905 | E119: 0
A120: DRAB1402 | B120: Underground network assets less than 33kV (cables) | C120: 60 | D120: 60 | E120: 0
A121: DRAB1403 | B121: Distribution substations including transformers | C121: 41.67204626 | D121: 41.67204626 | E121: 0
A122: DRAB1404 | B122: Overhead network assets 33kV and above (wires and towers / poles etc) | C122: 56.27869181 | D122: 56.27869181 | E122: 0
A123: DRAB1405 | B123: Underground network assets 33kV and above(cables, ducts etc) | C123: 45 | D123: 45 | E123: 0
A124: DRAB1406 | B124: Zone substations and transformers | C124: 45.28055981 | D124: 45.28055981 | E124: 0
A125: DRAB1407 | B125: Meters | C125: 25 | D125: 25 | E125: 25
A126: DRAB1408 | B126: "Other" assets with long lives | C126: 46.16481609 | D126: 46.16481609 | E126: 46.16481609
A127: DRAB1409 | B127: "Other" assets with short lives | C127: 8.64302697 | D127: 8.64302697 | E127: 8.64302697
B128: ESTIMATED RESIDUAL SERVICE LIFE
A129: DRAB1501 | B129: Overhead network assets less than 33kV (wires and poles) | C129: 40.22403478 | D129: 40.22403478 | E129: 0
A130: DRAB1502 | B130: Underground network assets less than 33kV (cables) | C130: 48.28897499 | D130: 48.28897499 | E130: 0
A131: DRAB1503 | B131: Distribution substations including transformers | C131: 32.77072846 | D131: 32.77072846 | E131: 0
A132: DRAB1504 | B132: Overhead network assets 33kV and above (wires and towers / poles etc) | C132: 46.25512365 | D132: 46.25512365 | E132: 0
A133: DRAB1505 | B133: Underground network assets 33kV and above (cables, ducts etc) | C133: 35.32292743 | D133: 35.32292743 | E133: 0
A134: DRAB1506 | B134: Zone substations and transformers | C134: 38.04087583 | D134: 38.04087583 | E134: 0
A135: DRAB1507 | B135: Meters | C135: 13.87348976 | D135: 13.87348976 | E135: 13.87348976
A136: DRAB1508 | B136: "Other" assets with long lives | C136: 34.50787593 | D136: 34.50787593 | E136: 34.50787593
A137: DRAB1509 | B137: "Other" assets with short lives | C137: 4.874017085 | D137: 4.874017085 | E137: 4.874017085

Sheet 3.4 Operational data
B1: REGULATORY REPORTING STATEMENT
B2: =dms_TradingName -> Endeavour Energy
B3: =CONCATENATE("Benchmarking RIN response ",CRY) -> Benchmarking RIN response 2017-18
B4: 3.4 OPERATIONAL DATA
B6: There are THREE tables on this worksheet. Each table has been grouped for ease of navigation. See the Instructions sheet on how to group or ungroup tables.
B8: 3.4.1 - ENERGY DELIVERY
D9: Standard control services
D10: VOLUME (0's)
C11: Units | D11: =CRY -> 2017-18
A12: DOPED01 | B12: Total energy delivered | C12: GWh | D12: 16639.35942
B15: 3.4.1.1 - Energy grouping - delivery by chargeable quantity
A16: DOPED0201 | B16: Energy Delivery where time of use is not a determinant | C16: GWh | D16: 6516.353599
A17: DOPED0202 | B17: Energy Delivery at On-peak times | C17: GWh | D17: 2116.158964
A18: DOPED0203 | B18: Energy Delivery at Shoulder times | C18: GWh | D18: 2381.237422
A19: DOPED0204 | B19: Energy Delivery at Off-peak times | C19: GWh | D19: 4682.449572
A20: DOPED0205 | B20: Controlled load energy deliveries | C20: GWh | D20: 798.7161874
A21: DOPED0206 | B21: Energy Delivery to unmetered supplies | C21: GWh | D21: 144.4436764
B23: 3.4.1.2 - Energy - received from TNSP and other DNSPs by time of receipt
A24: DOPED0301 | B24: Energy into DNSP network at On-peak times | C24: GWh | D24: 3490.897823
A25: DOPED0302 | B25: Energy into DNSP network at Shoulder times | C25: GWh | D25: 3791.933471
A26: DOPED0303 | B26: Energy into DNSP network at Off-peak times | C26: GWh | D26: 8001.934688
A27: DOPED0304 | B27: Energy received from TNSP and other DNSPs not included in the above categories | C27: GWh | D27: 0
B29: 3.4.1.3 - Energy - received into DNSP system from embedded generation by time of receipt
A30: DOPED0401 | B30: Energy into DNSP network at On-peak times from non-residential embedded generation | C30: GWh | D30: 468.6050996
A31: DOPED0402 | B31: Energy into DNSP network at Shoulder times from non-residential embedded generation | C31: GWh | D31: 467.9734463
A32: DOPED0403 | B32: Energy into DNSP network at Off-peak times from non-residential embedded generation | C32: GWh | D32: 962.4450713
A33: DOPED0404 | B33: Energy received from embedded generation not included in above categories from non-residential embedded generation | C33: GWh | D33: 0
A34: DOPED0405 | B34: Energy into DNSP network at On-peak times from residential embedded generation | C34: GWh | D34: 0
A35: DOPED0406 | B35: Energy into DNSP network at Shoulder times from residential embedded generation | C35: GWh | D35: 0
A36: DOPED0407 | B36: Energy into DNSP network at Off-peak times from residential embedded generation | C36: GWh | D36: 0
A37: DOPED0408 | B37: Energy received from embedded generation not included in above categories from residential embedded generation | C37: GWh | D37: 239.6234068
B39: 3.4.1.4 - Energy grouping - customer type or class
A40: DOPED0501 | B40: Residential customers energy deliveries | C40: GWh | D40: 5729.953313
A41: DOPED0502 | B41: Non residential customers not on demand tariffs energy deliveries | C41: GWh | D41: 1980.020663
A42: DOPED0503 | B42: Non-residential low voltage demand tariff customers energy deliveries | C42: GWh | D42: 3837.679385
A43: DOPED0504 | B43: Non-residential high voltage demand tariff customers energy deliveries | C43: GWh | D43: 5091.70606
A44: DOPED0505 | B44: Other Customer Class Energy Deliveries | C44: GWh | D44: 0
B47: 3.4.2 - CUSTOMER NUMBERS
D48: Standard control services
D49: VOLUME (0's)
D50: =CRY -> 2017-18
B51: 3.4.2.1 - Distribution customer numbers by customer type or class
A52: DOPCN0101 | B52: Residential customer numbers | D52: 899490.5
A53: DOPCN0102 | B53: Non residential customers not on demand tariff customer numbers | D53: 78732.5
A54: DOPCN0103 | B54: Low voltage demand tariff customer numbers | D54: 5062.5
A55: DOPCN0104 | B55: High voltage demand tariff customer numbers | D55: 338
A56: DOPCN0105 | B56: Unmetered Customer Numbers | D56: 7316
A57: DOPCN0106 | B57: Other Customer Numbers | D57: 14622.5
A58: DOPCN01 | B58: Total customer numbers | D58: =SUM(D52:D57) -> 1005562
B60: 3.4.2.2 - Distribution customer numbers by location on the network
A61: DOPCN0201 | B61: Customers on CBD network | D61: 0
A62: DOPCN0202 | B62: Customers on Urban network | D62: 725090.3851
A63: DOPCN0203 | B63: Customers on Short rural network | D63: 280160.6663
A64: DOPCN0204 | B64: Customers on Long rural network | D64: 310.9485321
A65: DOPCN02 | B65: Total customer numbers | D65: =SUM(D61:D64) -> 1005562
B67: 3.4.2.3 - Distribution customer numbers by TasNetworks (D) feeder categories (TasNetworks (D) only)
B68: Critical Infrastructure
B69: High Density Commercial
B70: Urban
B71: High Density Rural
B72: Low Density Rural
B73: Total customer numbers | D73: =SUM(D68:D72) -> 0
B75: 3.4.2.4 - Unmetered Supply TasNetworks (D) only)
A76: DOPCN0301 | B76: Number of unmetered connections reported in customer numbers in the economic benchmarking RIN
A77: DOPCN0302 | B77: Unmetered connections not reported in customer numbers in the economic benchmarking RIN
A78: DOPCN0303 | B78: Total unmetered connections
B81: 3.4.3 - SYSTEM DEMAND
D82: Standard control services
D83: VOLUME (0's)
C84: Units | D84: =CRY -> 2017-18
B85: 3.4.3.1 - Annual system maximum demand characteristics at the zone substation level – MW measure
A86: DOPSD0101 | B86: Non-coincident Summated Raw System Annual Maximum Demand | C86: MW | D86: 4457.49445
A87: DOPSD0102 | B87: Non–coincident Summated Weather Adjusted System Annual Maximum Demand 10% POE | C87: MW | D87: 4380.050605
A88: DOPSD0103 | B88: Non–coincident Summated Weather Adjusted System Annual Maximum Demand 50% POE | C88: MW | D88: 4079.503605
A89: DOPSD0104 | B89: Coincident Raw System Annual Maximum Demand | C89: MW | D89: 4011.197873
A90: DOPSD0105 | B90: Coincident Weather Adjusted System Annual Maximum Demand 10% POE | C90: MW | D90: 3988.812036
A91: DOPSD0106 | B91: Coincident Weather Adjusted System Annual Maximum Demand 50% POE | C91: MW | D91: 3692.454242
B93: 3.4.3.2 - Annual system maximum demand characteristics at the transmission connection point – MW measure
A94: DOPSD0107 | B94: Non-coincident Summated Raw System Annual Maximum Demand | C94: MW | D94: 4007.202536
A95: DOPSD0108 | B95: Non–coincident Summated Weather Adjusted System Annual Maximum Demand 10% POE | C95: MW | D95: 4040.008
A96: DOPSD0109 | B96: Non–coincident Summated Weather Adjusted System Annual Maximum Demand 50% POE | C96: MW | D96: 3721.828
A97: DOPSD0110 | B97: Coincident Raw System Annual Maximum Demand | C97: MW | D97: 3790.42
A98: DOPSD0111 | B98: Coincident Weather Adjusted System Annual Maximum Demand 10% POE | C98: MW | D98: 3837.39
A99: DOPSD0112 | B99: Coincident Weather Adjusted System Annual Maximum Demand 50% POE | C99: MW | D99: 3528.16
B101: 3.4.3.3 - Annual system maximum demand characteristics at the zone substation level – MVA measure
A102: DOPSD0201 | B102: Non–coincident Summated Raw System Annual Maximum Demand | C102: MVA | D102: 4503.036937
A103: DOPSD0202 | B103: Non–coincident Summated Weather Adjusted System Annual Maximum Demand 10% POE | C103: MVA | D103: 4539.803698
A104: DOPSD0203 | B104: Non–coincident Summated Weather Adjusted System Annual Maximum Demand 50% POE | C104: MVA | D104: 4231.545356
A105: DOPSD0204 | B105: Coincident Raw System Annual Maximum Demand | C105: MVA | D105: 4014.872311
A106: DOPSD0205 | B106: Coincident Weather Adjusted System Annual Maximum Demand 10% POE | C106: MVA | D106: 3992.465968
A107: DOPSD0206 | B107: Coincident Weather Adjusted System Annual Maximum Demand 50% POE | C107: MVA | D107: 3695.836696
B109: 3.4.3.4 - Annual system maximum demand characteristics at the transmission connection point – MVA measure
A110: DOPSD0207 | B110: Non–coincident Summated Raw System Annual Maximum Demand | C110: MVA | D110: 4048.144363
A111: DOPSD0208 | B111: Non–coincident Summated Weather Adjusted System Annual Maximum Demand 10% POE | C111: MVA | D111: 4080.989368
A112: DOPSD0209 | B112: Non–coincident Summated Weather Adjusted System Annual Maximum Demand 50% POE | C112: MVA | D112: 3759.854138
A113: DOPSD0210 | B113: Coincident Raw System Annual Maximum Demand | C113: MVA | D113: 3793.9
A114: DOPSD0211 | B114: Coincident Weather Adjusted System Annual Maximum Demand 10% POE | C114: MVA | D114: 3840.913123
A115: DOPSD0212 | B115: Coincident Weather Adjusted System Annual Maximum Demand 50% POE | C115: MVA | D115: 3531.399218
B117: 3.4.3.5 - Power factor conversion between MVA and MW
A118: DOPSD0301 | B118: Average overall network power factor conversion between MVA and MW | C118: Factor | D118: 0.999
A119: DOPSD0302 | B119: Average power factor conversion for low voltage distribution lines | C119: Factor | D119: 0.9466196938
A120: DOPSD0303 | B120: Average power factor conversion for 3.3 kV lines | C120: Factor | D120: 0
A121: DOPSD0304 | B121: Average power factor conversion for 6.6 kV lines | C121: Factor | D121: 0
A122: DOPSD0305 | B122: Average power factor conversion for 7.6 kV lines | C122: Factor | D122: 0
A123: DOPSD0306 | B123: Average power factor conversion for 11 kV lines | C123: Factor | D123: 0.9466196938
A124: DOPSD0307 | B124: Average power factor conversion for SWER lines | C124: Factor | D124: 0.9001082837
A125: DOPSD0308 | B125: Average power factor conversion for 22 kV lines | C125: Factor | D125: 0.9303653178
A126: DOPSD0309 | B126: Average power factor conversion for 33 kV lines | C126: Factor | D126: 0.9870872265
A127: DOPSD0310 | B127: Average power factor conversion for 44 kV lines | C127: Factor | D127: 0
A128: DOPSD0311 | B128: Average power factor conversion for 66 kV lines | C128: Factor | D128: 0.9818932324
A129: DOPSD0312 | B129: Average power factor conversion for 110 kV lines | C129: Factor | D129: 0
A130: DOPSD0313 | B130: Average power factor conversion for 132 kV lines | C130: Factor | D130: 0.990551197
A131: DOPSD0314 | B131: Average power factor conversion for 220 kV lines | C131: Factor | D131: 0
B133: 3.4.3.6 - Demand supplied (for customers charged on this basis) – MW measure
A134: DOPSD0401 | B134: Summated Chargeable Contracted Maximum Demand | C134: MW | D134: 0
A135: DOPSD0402 | B135: Summated Chargeable Measured Maximum Demand | C135: MW | D135: 3017.73381
B137: 3.4.3.7 - Demand supplied (for customers charged on this basis) – MVA measure
A138: DOPSD0403 | B138: Summated Chargeable Contracted Maximum Demand | C138: MVA | D138: 0
A139: DOPSD0404 | B139: Summated Chargeable Measured Maximum Demand | C139: MVA | D139: 18632.05647

Sheet 3.5 Physical assets
B1: REGULATORY REPORTING STATEMENT
B2: =dms_TradingName -> Endeavour Energy
B3: =CONCATENATE("Benchmarking RIN response ",CRY) -> Benchmarking RIN response 2017-18
B4: 3.5 PHYSICAL ASSETS
B6: There are THREE tables on this worksheet. Each table has been grouped (and sub-grouped) for ease of navigation. See the Instructions sheet on how to group or ungroup tables.
B8: 3.5.1 - NETWORK CAPACITIES
C9: VOLUME in KM's (0's)
B10: Circuit length | C10: =CRY -> 2017-18
B11: 3.5.1.1 - Overhead network length of circuit at each voltage
A12: DPA0101 | B12: Overhead low voltage distribution | C12: 8761.041463
A13: DPA0102 | B13: Overhead 2.2 kV | C13: 0
A14: DPA0103 | B14: Overhead 6.6kv | C14: 0
A15: DPA0104 | B15: Overhead 7.6 kV | C15: 0
A16: DPA0105 | B16: Overhead 11 kV | C16: 9075.596299
A17: DPA0106 | B17: Overhead SWER | C17: 481.90708
A18: DPA0107 | B18: Overhead 22 kV | C18: 1647.37197
A19: DPA0108 | B19: Overhead 33 kV | C19: 1454.674588
A20: DPA0109 | B20: Overhead 44 kV | C20: 0
A21: DPA0110 | B21: Overhead 66 kV | C21: 532.389225
A22: DPA0111 | B22: Overhead 110kV | C22: 0
A23: DPA0112 | B23: Overhead 132 kV | C23: 1212.151293
A24: DPA0113 | B24: Overhead 220kV | C24: 0
A25: DPA0114 | B25: Other | C25: 0
A26: DPA01 | B26: Total overhead circuit km | C26: =SUM(C12:C25) -> 23165.13192
B27: 3.5.1.2 - Underground network circuit length at each voltage
A28: DPA0201 | B28: Underground low voltage distribution | C28: 8935.808291
A29: DPA0202 | B29: Underground 5 kV | C29: 0
A30: DPA0203 | B30: Underground 6.6 Kv | C30: 0
A31: DPA0204 | B31: Underground 7.6 kV | C31: 0
A32: DPA0205 | B32: Underground 11 kV | C32: 4624.31854
A33: DPA0206 | B33: Underground SWER | C33: 0
A34: DPA0207 | B34: Underground 22 kV | C34: 432.574307
A35: DPA0208 | B35: Underground 33 kV | C35: 199.633614
A36: DPA0209 | B36: Underground 66 kV | C36: 34.725624
A37: DPA0210 | B37: Underground 110 kV | C37: 0
A38: DPA0211 | B38: Underground 132 kV | C38: 150.882516
A39: DPA0212 | B39: Other | C39: 0
A40: DPA02 | B40: Total underground circuit km | C40: =SUM(C28:C39) -> 14377.94289
C41: VOLUME in MVA (0's)
B42: Circuit Capacity MVA | C42: =CRY -> 2017-18
B43: 3.5.1.3 - Estimated overhead network weighted average MVA capacity by voltage class
A44: DPA0301 | B44: Overhead low voltage distribution | C44: 0.1605339564
A45: DPA0302 | B45: Overhead 6.6 kV | C45: 0
A46: DPA0303 | B46: Overhead 7.6 kV | C46: 0
A47: DPA0304 | B47: Overhead 11 kV | C47: 4.135510094
A48: DPA0305 | B48: Overhead SWER | C48: 0.844501652
A49: DPA0306 | B49: Overhead 22 kV | C49: 8.615742759
A50: DPA0307 | B50: Overhead 33 kV | C50: 29.95816357
A51: DPA0308 | B51: Overhead 44 kV | C51: 0
A52: DPA0309 | B52: Overhead 66 kV | C52: 41.85247259
A53: DPA0310 | B53: Overhead 110 kV | C53: 0
A54: DPA0311 | B54: Overhead 132 kV | C54: 199.7604445
A55: DPA0312 | B55: Overhead 220 kV | C55: 0
A56: DPA0313 | B56: Other | C56: 0
B57: 3.5.1.4 - Estimated underground network weighted average MVA capacity by voltage class
A58: DPA0401 | B58: Underground low voltage distribution | C58: 0.2075914864
A59: DPA0402 | B59: Underground 5 kV | C59: 0
A60: DPA0403 | B60: Underground 6.6 kV | C60: 0
A61: DPA0404 | B61: Underground 7.6 kV | C61: 0
A62: DPA0405 | B62: Underground 11 kV | C62: 6.193448307
A63: DPA0406 | B63: Underground SWER | C63: 0
A64: DPA0407 | B64: Underground 12.7 kV | C64: 0
A65: DPA0408 | B65: Underground 22 kV | C65: 12.82123629
A66: DPA0409 | B66: Underground 33 kV | C66: 42.52086234
A67: DPA0410 | B67: Underground 66 kV | C67: 79.3944077
A68: DPA0411 | B68: Underground 110 kV | C68: 0
A69: DPA0412 | B69: Underground 132 kV | C69: 146.6825184
A70: DPA0413 | B70: Other | C70: 0
B74: 3.5.2 - TRANSFORMER CAPACITIES
C75: VOLUME in MVA (0's)
C76: =CRY -> 2017-18
B77: 3.5.2.1 - Distribution transformer total installed capacity
A78: DPA0501 | B78: Distribution transformer capacity owned by utility | C78: 10483.953
A79: DPA0502 | B79: Distribution transformer capacity owned by High Voltage Customers | C79: 71.00966361
A80: DPA0503 | B80: Cold spare capacity included in DPA0501 | C80: 0
B81: 3.5.2.2 - Zone substation transformer capacity
A82: DPA0601 | B82: Total installed capacity for first step transformation where there are two steps to reach distribution voltage | C82: 5210
A83: DPA0602 | B83: Total installed capacity for second step transformation where there are two steps to reach distribution voltage | C83: 7247.5
A84: DPA0603 | B84: Total zone substation transformer capacity where there is only a single step transformation to reach distribution voltage | C84: 2735.5
A85: DPA0604 | B85: Total zone substation transformer capacity | C85: 15193
A86: DPA0605 | B86: Cold spare capacity of zone substation transformers included in DPA0604 | C86: 0
B87: 3.5.2.3 - Distribution - other transformer capacity
B88: Distribution other - transformer capacity owned by utility | C88: 0
B92: 3.5.3 - PUBLIC LIGHTING
C93: VOLUME (0's)
C94: =CRY -> 2017-18
A95: DPA0701 | B95: Public lighting luminaires | C95: 205295
A96: DPA0702 | B96: Public lighting poles | C96: 267
A97: DPA0703 | B97: Public lighting columns | C97: 100658

Sheet 3.6 Quality of service
B1: REGULATORY REPORTING STATEMENT
B2: =dms_TradingName -> Endeavour Energy
B3: =CONCATENATE("Benchmarking RIN response ",CRY) -> Benchmarking RIN response 2017-18
B4: 3.6 QUALITY OF SERVICE DATA
B7: 3.6.1 - RELIABILITY
D8: (0's)
C9: Units | D9: =IF(dms_RPT="financial",CONCATENATE("Calendar Year ", dms_0306_Year),dms_0306_Year) -> Calendar Year 2017
B10: INCLUSIVE OF MEDs
A11: DQS0101 | B11: Whole of network unplanned SAIDI | C11: minutes/customer | D11: 70.57368152
A12: DQS0102 | B12: Whole of network unplanned SAIDI excluding excluded outages | C12: minutes/customer | D12: 70.57368152
A13: DQS0103 | B13: Whole of network unplanned SAIFI | C13: interruptions/customer | D13: 0.7473870701
A14: DQS0104 | B14: Whole of network unplanned SAIFI excluding excluded outages | C14: interruptions/customer | D14: 0.7473870701
B15: EXCLUSIVE OF MEDs
A16: DQS0105 | B16: Whole of network unplanned SAIDI | C16: minutes/customer | D16: 70.57368152
A17: DQS0106 | B17: Whole of network unplanned SAIDI excluding excluded outages | C17: minutes/customer | D17: 70.57368152
A18: DQS0107 | B18: Whole of network unplanned SAIFI | C18: interruptions/customer | D18: 0.7473870701
A19: DQS0108 | B19: Whole of network unplanned SAIFI excluding excluded outages | C19: interruptions/customer | D19: 0.7473870701
B21: 3.6.2 - ENERGY NOT SUPPLIED
D22: (0's)
C23: Units | D23: =IF(dms_RPT="financial",CONCATENATE("Calendar Year ", dms_0306_Year),dms_0306_Year) -> Calendar Year 2017
A24: DQS0201 | B24: Energy Not Supplied (planned) | C24: GWh | D24: 1.093977627
A25: DQS0202 | B25: Energy Not Supplied (unplanned) | C25: GWh | D25: 1.015843466
A26: DQS02 | B26: Total | D26: =SUM(D24:D25) -> 2.109821093
B28: 3.6.3 - SYSTEM LOSSES
D29: (0's)
C30: Unit | D30: =IF(dms_RPT="financial",CONCATENATE("Calendar Year ", dms_0306_Year),dms_0306_Year) -> Calendar Year 2017
A31: DQS03 | B31: System losses | C31: % | D31: 0.045
B33: 3.6.4 - CAPACITY UTILISATION
D34: (0's)
C35: Unit | D35: =IF(dms_RPT="financial",CONCATENATE("Calendar Year ", dms_0306_Year),dms_0306_Year) -> Calendar Year 2017
A36: DQS04 | B36: Overall utilisation | C36: % | D36: 0.4511

Sheet 3.7 Operating environment
B1: REGULATORY REPORTING STATEMENT
B2: =dms_TradingName -> Endeavour Energy
B3: =CONCATENATE("Benchmarking RIN response ",CRY) -> Benchmarking RIN response 2017-18
B4: 3.7 OPERATING ENVIRONMENT FACTORS
B7: 3.7.1 - DENSITY FACTORS
D8: (0's)
C9: Units | D9: =CRY -> 2017-18
A10: DOEF0101 | B10: Customer density | C10: Customer / km | D10: ='3.4 Operational data'!D58/dms_030703_01_Values -> 36.01389384
A11: DOEF0102 | B11: Energy density | C11: MWh/customer | D11: ='3.4 Operational data'!D12*1000/'3.4 Operational data'!D58 -> 16.54732321
A12: DOEF0103 | B12: Demand density | C12: kVA / customer | D12: ='3.4 Operational data'!D104*1000/'3.4 Operational data'!D58 -> 4.208139683
B14: 3.7.2 - TERRAIN FACTORS
D15: (0's)
C16: Units | D16: =CRY -> 2017-18
A17: DOEF0201 | B17: Rural proportion | C17: % | D17: 0.5890036519
A18: DOEF0202 | B18: Urban and CBD vegetation maintenance spans | C18: Number of spans | D18: 70537
A19: DOEF0203 | B19: Rural vegetation maintenance spans | C19: Number of spans | D19: 52210
A20: DOEF0204 | B20: Total vegetation maintenance spans | C20: Number of spans | D20: 122747
A21: DOEF0205 | B21: Total number of spans | C21: Number of spans | D21: 315723
A22: DOEF0206 | B22: Average urban and CBD vegetation maintenance span cycle | C22: Years | D22: 1
A23: DOEF0207 | B23: Average rural vegetation maintenance span cycle | C23: Years | D23: 1
A24: DOEF0208 | B24: Average number of trees per urban and CBD vegetation maintenance span | C24: Trees | D24: 2.669986593
A25: DOEF0209 | B25: Average number of trees per rural vegetation maintenance span | C25: Trees | D25: 2.462395622
A26: DOEF0210 | B26: Average number of defects per urban and CBD vegetation maintenance span | C26: Defects | D26: 0.287767255
A27: DOEF0211 | B27: Average number of defects per rural vegetation maintenance span | C27: Defects | D27: 0.379308676
A28: DOEF0212 | B28: Tropical proportion | C28: Spans | D28: 0
A29: DOEF0213 | B29: Standard vehicle access | C29: km | D29: 17199
A30: DOEF0214 | B30: Bushfire risk | C30: Spans | D30: 35398
B32: 3.7.3 - SERVICE AREA FACTORS
D33: (0's)
C34: Units | D34: =CRY -> 2017-18
A35: DOEF0301 | B35: Route Line length | C35: km | D35: 27921.50175

Sheet NSP amendments
B1: =CONCATENATE(dms_TradingName," data amendments") -> Endeavour Energy data amendments
B2: Amended Table | C2: Comments
